Workbook

Sheet Instructions
A3: Funding requested from ERA | C3: 2000000
A4: Project Information | B4: ERA submission reference number | C4: 555555
B5: Project Title | C5: Elsa's Winter Castle
B6: Project Start Date | C6: 2022-01-05
B7: Project End Date | C7: 2025-01-05
B8: Number of Milestones Note: Maximum of 15 | C8: 15
A9: Project Partner Information (non-government) | B9: Project Lead Name | C9: Winterfell
B10: Project Partner 1 Name | C10: SpringBank Oil
B11: Project Partner 2 Name | C11: Gemstone drilling
B12: Project Partner 3 Name | C12: castle construction
B13: Project Partner 4 Name
B14: Project Partner 5 Name
B15: Project Partner 6 Name
B16: Project Partner 7 Name
B17: Project Partner 8 Name
B18: Project Partner 9 Name
A19: Government Funding Information | B19: Government Funder 1 Name | C19: NRCAN
B20: Government Funder 2 Name
B21: Government Funder 3 Name
B22: Governement Funder 4 Name
B23: Governement Funder 5 Name
C24: Equity Raise
C25: Debt Financing
C26: Other
C29: In Alberta
C30: in Canada, but Outside Alberta
C31: Outside of Canada
C32: Private
C33: Government
C34: Other
C35: CAD
C36: Other
C37: E
C38: I
C39: CO
C40: SC
C41: All
C42: M1
C43: M2
C44: M3
C45: M4
C46: M5
C47: M6
C48: M7
C49: M8
C50: M9
C51: M10
C52: M11
C53: M12
C54: M13
C55: M14
C56: M15

Sheet Summary for SDTC (hidden)
A1: Payment Schedule
A3: Milestone | B3: Total Eligible Costs | C3: SDTC Contribution | D3: SDTC Payment | E3: Payment Amount | F3: Scheduled Payment Date | G3: Milestone End Date | H3: Reports Due
A4: Milestone 1 | B4: ='Detailed Budget Summary - CA'!D20+'Detailed Budget Summary - CA'!E20 ->  | C4: ='Detailed Budget Summary - CA'!I16 ->  | D4: Initial payment | E4: =C4*0.9 ->  | F4: =IF(project_start="","",project_start) ->  | G4: =IF(MS_1="","",MS_1) ->  | H4: =IF(G4<>"",IF(G5<>"",G4+30,G4+90),"") -> 
A5: Milestone 2 | B5: ='Detailed Budget Summary - CA'!D27+'Detailed Budget Summary - CA'!E27 ->  | C5: ='Detailed Budget Summary - CA'!I23 ->  | D5: Payment #2 | E5: =C5*0.9 ->  | F5: =IF(G4<>"",IF(G5<>"",H4+45,""),"") ->  | G5: =IF(MS_2="","",MS_2) -> Government Funder 1 Name | H5: =IF(G5<>"",IF(G6<>"",G5+30,G5+90),"") -> 
A6: Milestone 3 | B6: ='Detailed Budget Summary - CA'!D34+'Detailed Budget Summary - CA'!E34 ->  | C6: ='Detailed Budget Summary - CA'!I30 ->  | D6: Payment #3 | F6: =IF(G5<>"",IF(G6<>"",H5+45,""),"") ->  | G6: =IF(MS_3="","",MS_3) -> Government Funder 2 Name
A7: Milestone 4 | B7: ='Detailed Budget Summary - CA'!D41+'Detailed Budget Summary - CA'!E41 ->  | C7: ='Detailed Budget Summary - CA'!I37 ->  | D7: Payment #4 | F7: =IF(G6<>"",IF(G7<>"",H6+45,""),"") ->  | G7: =IF(MS_4="","",MS_4) -> 
A8: Milestone 5 | B8: ='Detailed Budget Summary - CA'!D48+'Detailed Budget Summary - CA'!E48 ->  | C8: ='Detailed Budget Summary - CA'!I44 ->  | D8: Payment #5 | F8: =IF(G7<>"",IF(G8<>"",H7+45,""),"") ->  | G8: =IF(MS_5="","",MS_5) -> 
A9: Milestone 6 | B9: ='Detailed Budget Summary - CA'!D55+'Detailed Budget Summary - CA'!E55 ->  | C9: ='Detailed Budget Summary - CA'!I51 ->  | D9: Payment #6 | G9: =IF(MS_6="","",MS_6) -> 
A10: Milestone 7 | B10: ='Detailed Budget Summary - CA'!D62+'Detailed Budget Summary - CA'!E62 ->  | C10: ='Detailed Budget Summary - CA'!I58 ->  | D10: Payment #7 | F10: =IF(G9<>"",IF(G10<>"",H9+45,""),"") ->  | G10: =IF(project_end="","",project_end) ->  | H10: =IF(G10<>"",G10+90,"") -> 
A11: Final Payment | D11: Holdback | E11: =SUM(C4:C10)*0.1 ->  | F11: =IF(H4="","",IF(H5="",H4+90,IF(H6="",H5+90,IF(H7="",H6+90,IF(H8="",H7+90,IF(H9="",H8+90,IF(H10="",H9+90,H10+90))))))) -> 

Sheet Project Funding
A1: Proposed Project Funding Details
A2: ERA PROJECT NUMBER | B2: =SOI -> 555555
A3: PROJECT LEAD | B3: =Instructions!C9 -> Winterfell
A4: PROJECT TITLE | B4: =Company_name -> Elsa's Winter Castle
A6: Project Funders/Partners | B6: Location of Funding Organization | C6: Funding Type | D6: Funding Currency (e.g. CAD or Other - specify) | E6: Specify Funding Currency (if not CAD) | F6: Exchange Rate (if not CAD) | G6: Confirmed Funding (Funding Currency) | H6: Unconfirmed Funding (Funding Currency) | J6: Confirmed Funding* (CAD) | K6: Unconfirmed Funding (CAD) | L6: Total Funding (CAD) | N6: Inside Alberta | O6: In Canada, but outside Alberta | P6: Outside of Canada | Q6: Total | AC6: In Alberta
A7: ERA | B7: In Alberta | C7: ERA | D7: CAD | G7: =Instructions!C3 -> 2000000 | J7: =IF(D7="CAD",G7,G7*F7) -> 2000000 | K7: =IF(D7="CAD",H7,H7*F7) -> 0 | L7: =SUM(J7:K7) -> 2000000 | N7: =IF(B7="In Alberta",L7,0) -> 2000000 | O7: =IF(B7="In Canada, but outside Alberta",L7,0) -> 0 | P7: =IF(B7="Outside of Canada",L7,0) -> 0 | Q7: =SUM(N7:P7) -> 2000000 | AC7: In Canada, but outside Alberta
A8: Winterfell | B8: In Alberta | C8: Private | D8: CAD | G8: 2000000 | J8: 2000000 | K8: 0 | L8: =SUM(J8:K8) -> 2000000 | N8: 2000000 | O8: 0 | P8: 0 | Q8: =SUM(N8:P8) -> 2000000 | AC8: Outside of Canada
A9: SpringBank Oil | B9: In Alberta | C9: Private | D9: CAD | G9: 3000000 | J9: 3000000 | K9: 0 | L9: =SUM(J9:K9) -> 3000000 | N9: 3000000 | O9: 0 | P9: 0 | Q9: =SUM(N9:P9) -> 3000000
A10: Gemstone drilling | B10: In Canada, but outside Alberta | C10: Private | D10: CAD | G10: 2000000 | J10: 2000000 | K10: 0 | L10: 2000000 | N10: 0 | O10: 2000000 | P10: 0 | Q10: 2000000 | AC10: Y
A11: castle construction | B11: In Canada, but outside Alberta | C11: Private | D11: CAD | G11: 2000000 | J11: 2000000 | K11: 0 | L11: 2000000 | N11: 0 | O11: 2000000 | P11: 0 | Q11: 2000000 | AC11: N
A12: NRCAN | B12: In Canada, but outside Alberta | C12: Government | D12: CAD | G12: 2475000 | J12: 2475000 | K12: 0 | L12: 2475000 | N12: 0 | O12: 2475000 | P12: 0 | Q12: 2475000
J13: 0 | K13: 0 | L13: 0 | N13: 0 | O13: 0 | P13: 0 | Q13: 0
J14: 0 | K14: 0 | L14: 0 | N14: 0 | O14: 0 | P14: 0 | Q14: 0
J15: 0 | K15: 0 | L15: 0 | N15: 0 | O15: 0 | P15: 0 | Q15: 0
J16: 0 | K16: 0 | L16: =SUM(J16:K16) -> 0 | N16: =IF(B16="In Alberta",#REF!,0) -> 0 | O16: =IF(B16="In Canada, but outside Alberta",#REF!,0) -> 0 | P16: =IF(B16="Outside of Canada",#REF!,0) -> 0 | Q16: =SUM(N16:P16) -> 0
J17: 0 | K17: 0 | L17: =SUM(J17:K17) -> 0 | N17: =IF(B17="In Alberta",#REF!,0) -> 0 | O17: =IF(B17="In Canada, but outside Alberta",#REF!,0) -> 0 | P17: =IF(B17="Outside of Canada",#REF!,0) -> 0 | Q17: 0
J18: 0 | K18: 0 | L18: =SUM(J18:K18) -> 0 | N18: =IF(B18="In Alberta",#REF!,0) -> 0 | O18: =IF(B18="In Canada, but outside Alberta",#REF!,0) -> 0 | P18: =IF(B18="Outside of Canada",#REF!,0) -> 0 | Q18: 0
J19: 0 | K19: 0 | L19: 0 | N19: =IF(B19="In Alberta",#REF!,0) -> 0 | O19: =IF(B19="In Canada, but outside Alberta",#REF!,0) -> 0 | P19: =IF(B19="Outside of Canada",#REF!,0) -> 0 | Q19: 0
J20: 0 | K20: 0 | L20: 0 | N20: =IF(B20="In Alberta",#REF!,0) -> 0 | O20: =IF(B20="In Canada, but outside Alberta",#REF!,0) -> 0 | P20: =IF(B20="Outside of Canada",#REF!,0) -> 0 | Q20: 0
J21: 0 | K21: 0 | L21: =SUM(J21:K21) -> 0 | N21: =IF(B21="In Alberta",#REF!,0) -> 0 | O21: =IF(B21="In Canada, but outside Alberta",#REF!,0) -> 0 | P21: =IF(B21="Outside of Canada",#REF!,0) -> 0 | Q21: 0
J22: =SUM(J7:J21) -> 13475000 | K22: 0 | L22: =SUM(L7:L21) -> 13475000 | N22: =SUM(N7:N21) -> 7000000 | O22: 6475000 | P22: 0 | Q22: =SUM(Q7:Q21) -> 13475000
H25: Total Project Funding (CAD) | L25: =L22 -> 13475000
H27: Total Government Funding (incl ERA) | L27: =SUMIF(C7:C21,"Government",L7:L21)+G7 -> 4475000
H29: Total Private Funding | L29: =SUMIF(C7:C21,"Private",L7:L21) -> 9000000
H31: ERA % of Total Project Funding | L31: =$G$7/L25 -> 0.1484230056
H33: ERA % of Total Private Funding | L33: =$G$7/(SUMIF(C7:C21,"Private",L7:L21)) -> 0.2222222222
H35: % Government Funding/Total Budget | L35: =L27/L25 -> 0.332096475

Sheet DEPFC - CA (hidden)
A2: Detailed Eligible Project Funding Contribution
A4: Funding Commitments | B4: Confirmed Cash ($) | C4: Unconfirmed Cash ($) | D4: Source Type (Cash) | E4: Confirmed In-Kind($) | F4: Unconfirmed In-Kind($) | G4: Source Type (In-Kind) | H4: Confirmed Totals ($) | I4: Unconfirmed Totals ($) | J4: Totals ($) | K4: Time Period to Obtain Funding
A5: ELIGIBLE PROJECT FUNDING
A6: Consortium Members:
A7: ='Project Funding '!#REF! ->  | B7: ='Project Funding '!#REF! ->  | C7: ='Project Funding '!#REF! ->  | D7: ='Project Funding '!#REF! ->  | E7: ='Project Funding '!#REF! ->  | F7: ='Project Funding '!#REF! ->  | G7: ='Project Funding '!#REF! ->  | H7: =B7+E7 ->  | I7: =C7+F7 ->  | J7: =SUM(H7:I7) -> 
A8: ='Project Funding '!#REF! ->  | B8: ='Project Funding '!#REF! ->  | C8: ='Project Funding '!#REF! ->  | D8: ='Project Funding '!#REF! ->  | E8: ='Project Funding '!#REF! ->  | F8: ='Project Funding '!#REF! ->  | G8: ='Project Funding '!#REF! ->  | H8: =B8+E8 ->  | J8: =SUM(H8:I8) -> 
A9: ='Project Funding '!#REF! ->  | B9: ='Project Funding '!#REF! ->  | C9: ='Project Funding '!#REF! ->  | D9: ='Project Funding '!#REF! ->  | E9: ='Project Funding '!#REF! ->  | F9: ='Project Funding '!#REF! ->  | G9: ='Project Funding '!#REF! -> 
A10: ='Project Funding '!#REF! ->  | B10: ='Project Funding '!#REF! ->  | C10: ='Project Funding '!#REF! ->  | D10: ='Project Funding '!#REF! ->  | E10: ='Project Funding '!#REF! ->  | F10: ='Project Funding '!#REF! ->  | G10: ='Project Funding '!#REF! -> 
A11: ='Project Funding '!#REF! ->  | B11: ='Project Funding '!#REF! ->  | C11: ='Project Funding '!#REF! ->  | D11: ='Project Funding '!#REF! ->  | E11: ='Project Funding '!#REF! ->  | F11: ='Project Funding '!#REF! ->  | G11: ='Project Funding '!#REF! -> 
A12: ='Project Funding '!#REF! ->  | B12: ='Project Funding '!#REF! ->  | C12: ='Project Funding '!#REF! ->  | D12: ='Project Funding '!#REF! ->  | E12: ='Project Funding '!#REF! ->  | F12: ='Project Funding '!#REF! ->  | G12: ='Project Funding '!#REF! -> 
A13: ='Project Funding '!#REF! ->  | B13: ='Project Funding '!#REF! ->  | C13: ='Project Funding '!#REF! ->  | D13: ='Project Funding '!#REF! ->  | E13: ='Project Funding '!#REF! ->  | F13: ='Project Funding '!#REF! ->  | G13: ='Project Funding '!#REF! -> 
A14: ='Project Funding '!#REF! ->  | B14: ='Project Funding '!#REF! ->  | C14: ='Project Funding '!#REF! ->  | D14: ='Project Funding '!#REF! ->  | E14: ='Project Funding '!#REF! ->  | F14: ='Project Funding '!#REF! ->  | G14: ='Project Funding '!#REF! -> 
A15: ='Project Funding '!#REF! ->  | B15: ='Project Funding '!#REF! ->  | C15: ='Project Funding '!#REF! ->  | D15: ='Project Funding '!#REF! ->  | E15: ='Project Funding '!#REF! ->  | F15: ='Project Funding '!#REF! ->  | G15: ='Project Funding '!#REF! -> 
A16: ='Project Funding '!#REF! ->  | B16: ='Project Funding '!#REF! ->  | C16: ='Project Funding '!#REF! ->  | D16: ='Project Funding '!#REF! ->  | E16: ='Project Funding '!#REF! ->  | F16: ='Project Funding '!#REF! ->  | G16: ='Project Funding '!#REF! -> 
A17: ='Project Funding '!#REF! ->  | B17: ='Project Funding '!#REF! ->  | C17: ='Project Funding '!#REF! ->  | D17: ='Project Funding '!#REF! ->  | E17: ='Project Funding '!#REF! ->  | F17: ='Project Funding '!#REF! ->  | G17: ='Project Funding '!#REF! ->  | H17: =B17+E17 -> 
A18: ='Project Funding '!#REF! ->  | B18: ='Project Funding '!#REF! ->  | C18: ='Project Funding '!#REF! ->  | D18: ='Project Funding '!#REF! ->  | E18: ='Project Funding '!#REF! ->  | F18: ='Project Funding '!#REF! ->  | G18: ='Project Funding '!#REF! ->  | H18: =B18+E18 -> 
A19: ='Project Funding '!#REF! ->  | B19: ='Project Funding '!#REF! ->  | C19: ='Project Funding '!#REF! ->  | D19: ='Project Funding '!#REF! ->  | E19: ='Project Funding '!#REF! ->  | F19: ='Project Funding '!#REF! ->  | G19: ='Project Funding '!#REF! ->  | H19: =B19+E19 -> 
A20: ='Project Funding '!#REF! ->  | B20: ='Project Funding '!#REF! ->  | C20: ='Project Funding '!#REF! ->  | D20: ='Project Funding '!#REF! ->  | E20: ='Project Funding '!#REF! ->  | F20: ='Project Funding '!#REF! ->  | G20: ='Project Funding '!#REF! ->  | H20: =B20+E20 -> 
A21: ='Project Funding '!#REF! ->  | B21: ='Project Funding '!#REF! ->  | C21: ='Project Funding '!#REF! ->  | D21: ='Project Funding '!#REF! ->  | E21: ='Project Funding '!#REF! ->  | F21: ='Project Funding '!#REF! ->  | G21: ='Project Funding '!#REF! -> 
A22: ='Project Funding '!#REF! ->  | B22: ='Project Funding '!#REF! ->  | C22: ='Project Funding '!#REF! ->  | D22: ='Project Funding '!#REF! ->  | E22: ='Project Funding '!#REF! ->  | F22: ='Project Funding '!#REF! ->  | G22: ='Project Funding '!#REF! -> 
A23: ='Project Funding '!#REF! ->  | B23: ='Project Funding '!#REF! ->  | C23: ='Project Funding '!#REF! ->  | D23: ='Project Funding '!#REF! ->  | E23: ='Project Funding '!#REF! ->  | F23: ='Project Funding '!#REF! ->  | G23: ='Project Funding '!#REF! -> 
A25: Government Funding (specify program) | D25: Federal (GF), Provincial (GP) or Municipal (GM) | G25: Federal (GF), Provincial (GP) or Municipal (GM)
A26: ='Project Funding '!#REF! ->  | B26: ='Project Funding '!#REF! ->  | C26: ='Project Funding '!#REF! ->  | D26: ='Project Funding '!#REF! ->  | E26: ='Project Funding '!#REF! ->  | F26: ='Project Funding '!#REF! ->  | G26: ='Project Funding '!#REF! ->  | H26: =B26+E26 ->  | J26: =SUM(H26:I26) -> 
A27: ='Project Funding '!#REF! ->  | B27: ='Project Funding '!#REF! ->  | C27: ='Project Funding '!#REF! ->  | D27: ='Project Funding '!#REF! ->  | E27: ='Project Funding '!#REF! ->  | F27: ='Project Funding '!#REF! ->  | G27: ='Project Funding '!#REF! -> 
A28: ='Project Funding '!#REF! ->  | B28: ='Project Funding '!#REF! ->  | C28: ='Project Funding '!#REF! ->  | D28: ='Project Funding '!#REF! ->  | E28: ='Project Funding '!#REF! ->  | F28: ='Project Funding '!#REF! ->  | G28: ='Project Funding '!#REF! -> 
A29: ='Project Funding '!#REF! ->  | B29: ='Project Funding '!#REF! ->  | C29: ='Project Funding '!#REF! ->  | D29: ='Project Funding '!#REF! ->  | E29: ='Project Funding '!#REF! ->  | F29: ='Project Funding '!#REF! ->  | G29: ='Project Funding '!#REF! -> 
A30: ='Project Funding '!#REF! ->  | B30: ='Project Funding '!#REF! ->  | C30: ='Project Funding '!#REF! ->  | D30: ='Project Funding '!#REF! ->  | E30: ='Project Funding '!#REF! ->  | F30: ='Project Funding '!#REF! ->  | G30: ='Project Funding '!#REF! -> 
A31: SDTC | B31: ='Project Funding '!#REF! ->  | C31: 0 | I31: 0
A33: SDTC % of Total Project Funding | J33: =IF(J65<>0,MAX(B31,C31)/J65," - ") -> 
A34: SDTC % of Eligible Project Funding | J34: =IF(J36<>0,MAX(B31:C31)/J36," - ") -> 
A36: TOTAL ELIGIBLE PROJECT FUNDING | B36: =SUM(B7:B32) ->  | C36: =SUM(C7:C32) ->  | E36: =SUM(E7:E32) ->  | F36: =SUM(F7:F32) ->  | H36: =SUM(H7:H32) ->  | I36: =SUM(I7:I32) ->  | J36: =SUM(J7:J32) -> 
A38: INELIGIBLE PROJECT FUNDING
A39: Consortium Members:
A40: ='Project Funding '!#REF! ->  | B40: ='Project Funding '!#REF! ->  | C40: ='Project Funding '!#REF! ->  | D40: ='Project Funding '!#REF! ->  | E40: ='Project Funding '!#REF! ->  | F40: ='Project Funding '!#REF! ->  | G40: ='Project Funding '!#REF! ->  | H40: =B40+E40 ->  | J40: =SUM(H40:I40) -> 
A41: ='Project Funding '!#REF! ->  | B41: ='Project Funding '!#REF! ->  | C41: ='Project Funding '!#REF! ->  | D41: ='Project Funding '!#REF! ->  | E41: ='Project Funding '!#REF! ->  | F41: ='Project Funding '!#REF! ->  | G41: ='Project Funding '!#REF! -> 
A42: ='Project Funding '!#REF! ->  | B42: ='Project Funding '!#REF! ->  | C42: ='Project Funding '!#REF! ->  | D42: ='Project Funding '!#REF! ->  | E42: ='Project Funding '!#REF! ->  | F42: ='Project Funding '!#REF! ->  | G42: ='Project Funding '!#REF! -> 
A43: ='Project Funding '!#REF! ->  | B43: ='Project Funding '!#REF! ->  | C43: ='Project Funding '!#REF! ->  | D43: ='Project Funding '!#REF! ->  | E43: ='Project Funding '!#REF! ->  | F43: ='Project Funding '!#REF! ->  | G43: ='Project Funding '!#REF! -> 
A44: ='Project Funding '!#REF! ->  | B44: ='Project Funding '!#REF! ->  | C44: ='Project Funding '!#REF! ->  | D44: ='Project Funding '!#REF! ->  | E44: ='Project Funding '!#REF! ->  | F44: ='Project Funding '!#REF! ->  | G44: ='Project Funding '!#REF! -> 
A45: ='Project Funding '!#REF! ->  | B45: ='Project Funding '!#REF! ->  | C45: ='Project Funding '!#REF! ->  | D45: ='Project Funding '!#REF! ->  | E45: ='Project Funding '!#REF! ->  | F45: ='Project Funding '!#REF! ->  | G45: ='Project Funding '!#REF! -> 
A46: ='Project Funding '!#REF! ->  | B46: ='Project Funding '!#REF! ->  | C46: ='Project Funding '!#REF! ->  | D46: ='Project Funding '!#REF! ->  | E46: ='Project Funding '!#REF! ->  | F46: ='Project Funding '!#REF! ->  | G46: ='Project Funding '!#REF! -> 
A47: ='Project Funding '!#REF! ->  | B47: ='Project Funding '!#REF! ->  | C47: ='Project Funding '!#REF! ->  | D47: ='Project Funding '!#REF! ->  | E47: ='Project Funding '!#REF! ->  | F47: ='Project Funding '!#REF! ->  | G47: ='Project Funding '!#REF! -> 
A48: ='Project Funding '!#REF! ->  | B48: ='Project Funding '!#REF! ->  | C48: ='Project Funding '!#REF! ->  | D48: ='Project Funding '!#REF! ->  | E48: ='Project Funding '!#REF! ->  | F48: ='Project Funding '!#REF! ->  | G48: ='Project Funding '!#REF! -> 
A49: ='Project Funding '!#REF! ->  | B49: ='Project Funding '!#REF! ->  | C49: ='Project Funding '!#REF! ->  | D49: ='Project Funding '!#REF! ->  | E49: ='Project Funding '!#REF! ->  | F49: ='Project Funding '!#REF! ->  | G49: ='Project Funding '!#REF! -> 
A50: ='Project Funding '!#REF! ->  | B50: ='Project Funding '!#REF! ->  | C50: ='Project Funding '!#REF! ->  | D50: ='Project Funding '!#REF! ->  | E50: ='Project Funding '!#REF! ->  | F50: ='Project Funding '!#REF! ->  | G50: ='Project Funding '!#REF! -> 
A51: ='Project Funding '!#REF! ->  | B51: ='Project Funding '!#REF! ->  | C51: ='Project Funding '!#REF! ->  | D51: ='Project Funding '!#REF! ->  | E51: ='Project Funding '!#REF! ->  | F51: ='Project Funding '!#REF! ->  | G51: ='Project Funding '!#REF! -> 
A52: ='Project Funding '!#REF! ->  | B52: ='Project Funding '!#REF! ->  | C52: ='Project Funding '!#REF! ->  | D52: ='Project Funding '!#REF! ->  | E52: ='Project Funding '!#REF! ->  | F52: ='Project Funding '!#REF! ->  | G52: ='Project Funding '!#REF! -> 
A53: ='Project Funding '!#REF! ->  | B53: ='Project Funding '!#REF! ->  | C53: ='Project Funding '!#REF! ->  | D53: ='Project Funding '!#REF! ->  | E53: ='Project Funding '!#REF! ->  | F53: ='Project Funding '!#REF! ->  | G53: ='Project Funding '!#REF! -> 
A54: ='Project Funding '!#REF! ->  | B54: ='Project Funding '!#REF! ->  | C54: ='Project Funding '!#REF! ->  | D54: ='Project Funding '!#REF! ->  | E54: ='Project Funding '!#REF! ->  | F54: ='Project Funding '!#REF! ->  | G54: ='Project Funding '!#REF! -> 
A55: ='Project Funding '!#REF! ->  | B55: ='Project Funding '!#REF! ->  | C55: ='Project Funding '!#REF! ->  | D55: ='Project Funding '!#REF! ->  | E55: ='Project Funding '!#REF! ->  | F55: ='Project Funding '!#REF! ->  | G55: ='Project Funding '!#REF! -> 
A57: Government Funding (specify program) | D57: Federal (GF), Provincial (GP) or Municipal (GM) | G57: Federal (GF), Provincial (GP) or Municipal (GM)
A58: ='Project Funding '!#REF! ->  | B58: ='Project Funding '!#REF! ->  | C58: ='Project Funding '!#REF! ->  | D58: ='Project Funding '!#REF! ->  | E58: ='Project Funding '!#REF! ->  | F58: ='Project Funding '!#REF! ->  | G58: ='Project Funding '!#REF! ->  | H58: =B58+E58 ->  | I58: =C58+F58 ->  | J58: =SUM(H58:I58) -> 
A59: ='Project Funding '!#REF! ->  | B59: ='Project Funding '!#REF! ->  | C59: ='Project Funding '!#REF! ->  | D59: ='Project Funding '!#REF! ->  | E59: ='Project Funding '!#REF! ->  | F59: ='Project Funding '!#REF! ->  | G59: ='Project Funding '!#REF! -> 
A60: ='Project Funding '!#REF! ->  | B60: ='Project Funding '!#REF! ->  | C60: ='Project Funding '!#REF! ->  | D60: ='Project Funding '!#REF! ->  | E60: ='Project Funding '!#REF! ->  | F60: ='Project Funding '!#REF! ->  | G60: ='Project Funding '!#REF! -> 
A61: ='Project Funding '!#REF! ->  | B61: ='Project Funding '!#REF! ->  | C61: ='Project Funding '!#REF! ->  | D61: ='Project Funding '!#REF! ->  | E61: ='Project Funding '!#REF! ->  | F61: ='Project Funding '!#REF! ->  | G61: ='Project Funding '!#REF! -> 
A62: ='Project Funding '!#REF! ->  | B62: ='Project Funding '!#REF! ->  | C62: ='Project Funding '!#REF! ->  | D62: ='Project Funding '!#REF! ->  | E62: ='Project Funding '!#REF! ->  | F62: ='Project Funding '!#REF! ->  | G62: ='Project Funding '!#REF! -> 
A64: TOTAL INELIGIBLE PROJECT FUNDING | B64: =SUM(B40:B63) ->  | C64: =SUM(C40:C63) ->  | E64: =SUM(E40:E63) ->  | F64: =SUM(F40:F63) ->  | H64: =SUM(H40:H63) ->  | I64: =SUM(I40:I63) ->  | J64: =SUM(J40:J63) -> 
A65: TOTAL PROJECT FUNDING | B65: =B64+B36 ->  | C65: =C64+C36 ->  | E65: =E64+E36 ->  | F65: =F64+F36 ->  | H65: =H64+H36 ->  | I65: =I64+I36 ->  | J65: =J64+J36 -> 
A68: Funding Source Summary
A70: Description | B70: Amount | C70: % of Eligible Project Costs
A71: Total Eligible Project Costs | B71: ='Detailed Budget Summary - CA'!D65 -> 
A72: Total Ineligible Project Costs | B72: ='Detailed Budget Summary - CA'!F64 ->  | D72: =IF(J64<B72," Ineligible funds do not meet ineligble costs","") -> 
A73: Total Project Costs | B73: ='Detailed Budget Summary - CA'!D66 -> 
A74: Eligible Consortium Members Funds | B74: =SUM(J7:J23) ->  | C74: =IF(B$71<>0,B74/B$71, ) ->  | D74: =IF(AND(C74<25%, C74>0), " Consortium portion of eligible costs < 25%", " " ) -> 
A75: SDTC Funds | B75: =J31 ->  | C75: =IF(B$71<>0,B75/B$71, ) ->  | D75: =IF(C75>50%, " SDTC portion of eligible costs > 50%", " " ) -> 
A76: Eligible Other Government Funds | B76: =SUM(J26:J30) ->  | C76: =IF(B$71<>0,B76/B$71,) ->  | D76: =IF(C75+C76>75%, " SDTC+Gov portion of eligible costs >75%", " " ) -> 
A77: Total Eligible Funds | B77: =J36 ->  | C77: =SUM(C74:C76) ->  | D77: =IF(AND(B71<>0,C77<100%), " Funds do not cover costs", " " ) -> 
A78: Total Project Funds | B78: =J65 ->  | C78: =IF(B73<>0,B78/B73,) ->  | D78: =IF(AND(B73<>0,C78<100%), " Funds do not cover costs", " " ) -> 
A81: Funding Status
A83: Description | B83: Amount | C83: % of Required Funding
A84: Confirmed Cash | B84: =B65 ->  | C84: =IF($B$90=0,0,IF(B84/$B$90>0,B84/$B$90,"-")) -> 
A85: Confirmed In-Kind | B85: =E65 ->  | C85: =IF($B$90=0,0,IF(B85/$B$90>0,B85/$B$90,"-")) -> 
A86: Total Confirmed Funds | B86: =SUM(B84:B85) -> 
A87: Unconfirmed Cash | B87: =C65 -> 
A88: Unconfirmed In-Kind | B88: =F65 -> 
A89: Total Unconfirmed Funds | B89: =SUM(B87:B88) -> 
A90: Total Project Funds | B90: =B89+B86 -> 

Sheet Cash Flow Forecast (hidden)
A1: ="Cash Flow Forecast for "&Instructions!#REF! -> 
B3: Milestone 1 | C3: Milestone 2 | D3: Milestone 3 | E3: Milestone 4 | F3: Milestone 5 | G3: Milestone 6 | H3: Milestone 7 | I3: Comments
A4: Company Expenditures
A5: SDTC Project - Eligible Cash Costs | B5: =#REF! ->  | C5: =#REF! ->  | D5: =#REF! ->  | E5: =#REF! ->  | F5: =#REF! ->  | G5: =#REF! ->  | H5: =#REF! -> 
A6: SDTC Project - Non Eligible Cash Costs | B6: =Labour!#REF!+Travel!#REF!+Equip!#REF!+'Consult-SubC'!#REF!+'Materials-Supplies'!#REF! ->  | C6: =#REF!+#REF!+#REF!+#REF!+#REF! ->  | D6: =#REF!+#REF!+#REF!+#REF!+#REF! ->  | E6: =#REF!+#REF!+#REF!+#REF!+#REF! ->  | F6: =#REF!+#REF!+#REF!+#REF!+#REF! ->  | G6: =#REF!+#REF!+#REF!+#REF!+#REF! ->  | H6: =#REF!+#REF!+#REF!+#REF!+#REF! -> 
A7: Other Company Expenditures
A8: Total Expenditures | B8: =B5+B6+B7 ->  | C8: =C5+C6+C7 -> 
A9: Confirmed Sources of Funding
A10: Cash On Hand at Milestone Start | C10: =B21 -> 
A11: Project Related Revenues
A12: Other Revenues
A13: Cash Contributions from Consortium Members
A14: Investors
A15: Loans
A16: SR&ED (Project Related)
A17: SR&ED (Other)
A18: Other Grants
A19: SDTC | B19: ='Summary for SDTC'!E4 ->  | C19: ='Summary for SDTC'!E5 ->  | D19: ='Summary for SDTC'!E6 ->  | E19: ='Summary for SDTC'!E7 ->  | F19: ='Summary for SDTC'!E8 ->  | G19: ='Summary for SDTC'!E9 ->  | H19: ='Summary for SDTC'!E10 -> 
A20: Total Confirmed Funding | B20: =SUM(B10:B19) ->  | C20: =SUM(C10:C19) -> 
A21: Balance | B21: =B20-B8 ->  | C21: =C20-C8 -> 
A22: Unconfirmed Sources of Funding
A23: Cash On Hand at Milestone Start | B23: =B10 -> 0 | C23: =B34 -> 
A24: Project Related Revenues
A25: Other Revenues
A26: Cash Contributions from Consortium Members
A27: Investors
A28: Loans
A29: SR&ED (Project Related)
A30: SR&ED (Other)
A31: Other Grants
A32: Total Unconfirmed Funding | B32: =SUM(B23:B31) -> 0 | C32: =SUM(C23:C31) -> 
A33: Total Funding | B33: =SUM(B11:B19)+SUM(B23:B31) ->  | C33: =SUM(C11:C19)+SUM(C23:C31) -> 
A34: Balance | B34: =B33-B8 ->  | C34: =C33-C8 -> 

Sheet Detailed Budget Summary - CA (hidden)
A1: Project Financial Certification Report (PFCR)
A2: Contract Number: | C2: =SOI -> 555555
A3: Consortium Name: | C3: =Company_name -> Elsa's Winter Castle
A4: Date of Report:
A5: NOTE: A detailed report of all project expenditures must be included with this report (a copy of the project expenditure ledger will suffice)
A6: and copies of invoices over $1000.00 must be made available for review and submitted with the Final Project Report.
A7: NOTE: SDTC's contribution can never exceed the percentage contribution approved by the Board at any given time.
A10: The information provided on this report is hereby certified to be true and accurate: _________________________________________________
A11: Name Title
A13: Date | B13: Milestone | C13: Activity/Description of Expenses | D13: Budget | G13: Contributors
D14: Eligible Cash | E14: Eligible In-kind | F14: Ineligible | G14: In-kind Contributions | H14: Cash Contributions
A15: =MS_1 ->  | B15: Milestone 1 | C15: Labour | D15: =#REF! ->  | E15: =#REF! ->  | F15: =#REF! ->  | G15: =CONCATENATE(IF(#REF!<>0, "- "&#REF!&" ", ""), IF(#REF!<>0, "- "&#REF!&" ", ""), IF(#REF!<>0, "- "&#REF!&" ", ""), IF(#REF!<>0, "- "&#REF!&" ", ""), IF(#REF!<>0, "- "&#REF!&" ", ""), IF(#REF!<>0, "- "&#REF!&" ", ""), IF(#REF!<>0, "- "&#REF!&" ", ""), IF(#REF!<>0, "- "&#REF!&" ", ""), IF(#REF!<>0, "- "&#REF!&" ", ""), IF(#REF!<>0, "- "&#REF!&" ", ""), IF(#REF!<>0, "- "&#REF!&" -", "- ")) ->  | H15: Contributor | I15: Amount | J15: %
C16: Travel | D16: =#REF! ->  | E16: =#REF! ->  | F16: =#REF! ->  | G16: =CONCATENATE(IF(#REF!<>0, "- "&#REF!&" ", ""), IF(#REF!<>0, "- "&#REF!&" ", ""), IF(#REF!<>0, "- "&#REF!&" ", ""), IF(#REF!<>0, "- "&#REF!&" ", ""), IF(#REF!<>0, "- "&#REF!&" ", ""), IF(#REF!<>0, "- "&#REF!&" ", ""), IF(#REF!<>0, "- "&#REF!&" ", ""), IF(#REF!<>0, "- "&#REF!&" ", ""), IF(#REF!<>0, "- "&#REF!&" ", ""), IF(#REF!<>0, "- "&#REF!&" ", ""), IF(#REF!<>0, "- "&#REF!&" -", "- ")) ->  | H16: SDTC | I16: =D21*J16 ->  | J16: ='DEPFC - CA'!$C$75 -> 
C17: Equipment | D17: =#REF! ->  | E17: =#REF! ->  | F17: =#REF! ->  | G17: =CONCATENATE(IF(#REF!<>0, "- "&#REF!&" ", ""), IF(#REF!<>0, "- "&#REF!&" ", ""), IF(#REF!<>0, "- "&#REF!&" ", ""), IF(#REF!<>0, "- "&#REF!&" ", ""), IF(#REF!<>0, "- "&#REF!&" ", ""), IF(#REF!<>0, "- "&#REF!&" ", ""), IF(#REF!<>0, "- "&#REF!&" ", ""), IF(#REF!<>0, "- "&#REF!&" ", ""), IF(#REF!<>0, "- "&#REF!&" ", ""), IF(#REF!<>0, "- "&#REF!&" ", ""), IF(#REF!<>0, "- "&#REF!&" -", "- ")) -> 
C18: Sub-contractors & Consultants | D18: =#REF! ->  | E18: =#REF! ->  | F18: =#REF! ->  | G18: =CONCATENATE(IF(#REF!<>0, "- "&#REF!&" ", ""), IF(#REF!<>0, "- "&#REF!&" ", ""), IF(#REF!<>0, "- "&#REF!&" ", ""), IF(#REF!<>0, "- "&#REF!&" ", ""), IF(#REF!<>0, "- "&#REF!&" ", ""), IF(#REF!<>0, "- "&#REF!&" ", ""), IF(#REF!<>0, "- "&#REF!&" ", ""), IF(#REF!<>0, "- "&#REF!&" ", ""), IF(#REF!<>0, "- "&#REF!&" ", ""), IF(#REF!<>0, "- "&#REF!&" ", ""), IF(#REF!<>0, "- "&#REF!&" -", "- ")) ->  | H18: Other | I18: =D20-I16 ->  | J18: =IF(D21<>0,I18/D21,) -> 
C19: Other Costs | D19: =#REF! ->  | E19: =#REF! ->  | F19: =#REF! ->  | G19: =CONCATENATE(IF(#REF!<>0, "- "&#REF!&" ", ""), IF(#REF!<>0, "- "&#REF!&" ", ""), IF(#REF!<>0, "- "&#REF!&" ", ""), IF(#REF!<>0, "- "&#REF!&" ", ""), IF(#REF!<>0, "- "&#REF!&" ", ""), IF(#REF!<>0, "- "&#REF!&" ", ""), IF(#REF!<>0, "- "&#REF!&" ", ""), IF(#REF!<>0, "- "&#REF!&" ", ""), IF(#REF!<>0, "- "&#REF!&" ", ""), IF(#REF!<>0, "- "&#REF!&" ", ""), IF(#REF!<>0, "- "&#REF!&" -", "- ")) -> 
C20: Totals for Milestone 1: | D20: =SUM(D15:D19) ->  | E20: =SUM(E15:E19) ->  | F20: =SUM(F15:F19) ->  | G20: =IF(D21<>0,E20/D21,) ->  | H20: =IF(D21<>0,D20/D21,) -> 
D21: =D20+E20 -> 
A22: =MS_2 -> Government Funder 1 Name | B22: Milestone 2 | C22: Labour | D22: =#REF! ->  | E22: =#REF! ->  | F22: =#REF! ->  | G22: =CONCATENATE(IF(#REF!<>0, "- "&#REF!&" ", ""), IF(#REF!<>0, "- "&#REF!&" ", ""), IF(#REF!<>0, "- "&#REF!&" ", ""), IF(#REF!<>0, "- "&#REF!&" ", ""), IF(#REF!<>0, "- "&#REF!&" ", ""), IF(#REF!<>0, "- "&#REF!&" ", ""), IF(#REF!<>0, "- "&#REF!&" ", ""), IF(#REF!<>0, "- "&#REF!&" ", ""), IF(#REF!<>0, "- "&#REF!&" ", ""), IF(#REF!<>0, "- "&#REF!&" ", ""), IF(#REF!<>0, "- "&#REF!&" -", "- ")) ->  | H22: Contributor | I22: Amount | J22: %
C23: Travel | D23: =#REF! ->  | E23: =#REF! ->  | F23: =#REF! ->  | G23: =CONCATENATE(IF(#REF!<>0, "- "&#REF!&" ", ""), IF(#REF!<>0, "- "&#REF!&" ", ""), IF(#REF!<>0, "- "&#REF!&" ", ""), IF(#REF!<>0, "- "&#REF!&" ", ""), IF(#REF!<>0, "- "&#REF!&" ", ""), IF(#REF!<>0, "- "&#REF!&" ", ""), IF(#REF!<>0, "- "&#REF!&" ", ""), IF(#REF!<>0, "- "&#REF!&" ", ""), IF(#REF!<>0, "- "&#REF!&" ", ""), IF(#REF!<>0, "- "&#REF!&" ", ""), IF(#REF!<>0, "- "&#REF!&" -", "- ")) ->  | H23: SDTC | I23: =D28*J23 ->  | J23: ='DEPFC - CA'!$C$75 -> 
C24: Equipment | D24: =#REF! ->  | E24: =#REF! ->  | F24: =#REF! ->  | G24: =CONCATENATE(IF(#REF!<>0, "- "&#REF!&" ", ""), IF(#REF!<>0, "- "&#REF!&" ", ""), IF(#REF!<>0, "- "&#REF!&" ", ""), IF(#REF!<>0, "- "&#REF!&" ", ""), IF(#REF!<>0, "- "&#REF!&" ", ""), IF(#REF!<>0, "- "&#REF!&" ", ""), IF(#REF!<>0, "- "&#REF!&" ", ""), IF(#REF!<>0, "- "&#REF!&" ", ""), IF(#REF!<>0, "- "&#REF!&" ", ""), IF(#REF!<>0, "- "&#REF!&" ", ""), IF(#REF!<>0, "- "&#REF!&" -", "- ")) -> 
C25: Sub-contractors & Consultants | D25: =#REF! ->  | E25: =#REF! ->  | F25: =#REF! ->  | G25: =CONCATENATE(IF(#REF!<>0, "- "&#REF!&" ", ""), IF(#REF!<>0, "- "&#REF!&" ", ""), IF(#REF!<>0, "- "&#REF!&" ", ""), IF(#REF!<>0, "- "&#REF!&" ", ""), IF(#REF!<>0, "- "&#REF!&" ", ""), IF(#REF!<>0, "- "&#REF!&" ", ""), IF(#REF!<>0, "- "&#REF!&" ", ""), IF(#REF!<>0, "- "&#REF!&" ", ""), IF(#REF!<>0, "- "&#REF!&" ", ""), IF(#REF!<>0, "- "&#REF!&" ", ""), IF(#REF!<>0, "- "&#REF!&" -", "- ")) ->  | H25: Other | I25: =D27-I23 ->  | J25: =IF(D28<>0,I25/D28,) -> 
C26: Other Costs | D26: =#REF! ->  | E26: =#REF! ->  | F26: =#REF! ->  | G26: =CONCATENATE(IF(#REF!<>0, "- "&#REF!&" ", ""), IF(#REF!<>0, "- "&#REF!&" ", ""), IF(#REF!<>0, "- "&#REF!&" ", ""), IF(#REF!<>0, "- "&#REF!&" ", ""), IF(#REF!<>0, "- "&#REF!&" ", ""), IF(#REF!<>0, "- "&#REF!&" ", ""), IF(#REF!<>0, "- "&#REF!&" ", ""), IF(#REF!<>0, "- "&#REF!&" ", ""), IF(#REF!<>0, "- "&#REF!&" ", ""), IF(#REF!<>0, "- "&#REF!&" ", ""), IF(#REF!<>0, "- "&#REF!&" -", "- ")) -> 
C27: Totals for Milestone 2: | D27: =SUM(D22:D26) ->  | E27: =SUM(E22:E26) ->  | F27: =SUM(F22:F26) ->  | G27: =IF(D28<>0,E27/D28,) ->  | H27: =IF(D28<>0,D27/D28,) -> 
D28: =D27+E27 -> 
A29: =MS_3 -> Government Funder 2 Name | B29: Milestone 3 | C29: Labour | D29: =#REF! ->  | E29: =#REF! ->  | F29: =#REF! ->  | G29: =CONCATENATE(IF(#REF!<>0, "- "&#REF!&" ", ""), IF(#REF!<>0, "- "&#REF!&" ", ""), IF(#REF!<>0, "- "&#REF!&" ", ""), IF(#REF!<>0, "- "&#REF!&" ", ""), IF(#REF!<>0, "- "&#REF!&" ", ""), IF(#REF!<>0, "- "&#REF!&" ", ""), IF(#REF!<>0, "- "&#REF!&" ", ""), IF(#REF!<>0, "- "&#REF!&" ", ""), IF(#REF!<>0, "- "&#REF!&" ", ""), IF(#REF!<>0, "- "&#REF!&" ", ""), IF(#REF!<>0, "- "&#REF!&" -", "- ")) ->  | H29: Contributor | I29: Amount | J29: %
C30: Travel | D30: =#REF! ->  | E30: =#REF! ->  | F30: =#REF! ->  | G30: =CONCATENATE(IF(#REF!<>0, "- "&#REF!&" ", ""), IF(#REF!<>0, "- "&#REF!&" ", ""), IF(#REF!<>0, "- "&#REF!&" ", ""), IF(#REF!<>0, "- "&#REF!&" ", ""), IF(#REF!<>0, "- "&#REF!&" ", ""), IF(#REF!<>0, "- "&#REF!&" ", ""), IF(#REF!<>0, "- "&#REF!&" ", ""), IF(#REF!<>0, "- "&#REF!&" ", ""), IF(#REF!<>0, "- "&#REF!&" ", ""), IF(#REF!<>0, "- "&#REF!&" ", ""), IF(#REF!<>0, "- "&#REF!&" -", "- ")) ->  | H30: SDTC | I30: =D35*J30 ->  | J30: ='DEPFC - CA'!$C$75 -> 
C31: Equipment | D31: =#REF! ->  | E31: =#REF! ->  | F31: =#REF! ->  | G31: =CONCATENATE(IF(#REF!<>0, "- "&#REF!&" ", ""), IF(#REF!<>0, "- "&#REF!&" ", ""), IF(#REF!<>0, "- "&#REF!&" ", ""), IF(#REF!<>0, "- "&#REF!&" ", ""), IF(#REF!<>0, "- "&#REF!&" ", ""), IF(#REF!<>0, "- "&#REF!&" ", ""), IF(#REF!<>0, "- "&#REF!&" ", ""), IF(#REF!<>0, "- "&#REF!&" ", ""), IF(#REF!<>0, "- "&#REF!&" ", ""), IF(#REF!<>0, "- "&#REF!&" ", ""), IF(#REF!<>0, "- "&#REF!&" -", "- ")) -> 
C32: Sub-contractors & Consultants | D32: =#REF! ->  | E32: =#REF! ->  | F32: =#REF! ->  | G32: =CONCATENATE(IF(#REF!<>0, "- "&#REF!&" ", ""), IF(#REF!<>0, "- "&#REF!&" ", ""), IF(#REF!<>0, "- "&#REF!&" ", ""), IF(#REF!<>0, "- "&#REF!&" ", ""), IF(#REF!<>0, "- "&#REF!&" ", ""), IF(#REF!<>0, "- "&#REF!&" ", ""), IF(#REF!<>0, "- "&#REF!&" ", ""), IF(#REF!<>0, "- "&#REF!&" ", ""), IF(#REF!<>0, "- "&#REF!&" ", ""), IF(#REF!<>0, "- "&#REF!&" ", ""), IF(#REF!<>0, "- "&#REF!&" -", "- ")) ->  | H32: Other | I32: =D34-I30 ->  | J32: =IF(D35<>0,I32/D35,) -> 
C33: Other Costs | D33: =#REF! ->  | E33: =#REF! ->  | F33: =#REF! ->  | G33: =CONCATENATE(IF(#REF!<>0, "- "&#REF!&" ", ""), IF(#REF!<>0, "- "&#REF!&" ", ""), IF(#REF!<>0, "- "&#REF!&" ", ""), IF(#REF!<>0, "- "&#REF!&" ", ""), IF(#REF!<>0, "- "&#REF!&" ", ""), IF(#REF!<>0, "- "&#REF!&" ", ""), IF(#REF!<>0, "- "&#REF!&" ", ""), IF(#REF!<>0, "- "&#REF!&" ", ""), IF(#REF!<>0, "- "&#REF!&" ", ""), IF(#REF!<>0, "- "&#REF!&" ", ""), IF(#REF!<>0, "- "&#REF!&" -", "- ")) -> 
C34: Totals for Milestone 3: | D34: =SUM(D29:D33) ->  | E34: =SUM(E29:E33) ->  | F34: =SUM(F29:F33) ->  | G34: =IF(D35<>0,E34/D35,) ->  | H34: =IF(D35<>0,D34/D35,) -> 
D35: =D34+E34 -> 
A36: =MS_4 -> 00:00:00 | B36: Milestone 4 | C36: Labour | D36: =#REF! ->  | E36: =#REF! ->  | F36: =#REF! ->  | G36: =CONCATENATE(IF(#REF!<>0, "- "&#REF!&" ", ""), IF(#REF!<>0, "- "&#REF!&" ", ""), IF(#REF!<>0, "- "&#REF!&" ", ""), IF(#REF!<>0, "- "&#REF!&" ", ""), IF(#REF!<>0, "- "&#REF!&" ", ""), IF(#REF!<>0, "- "&#REF!&" ", ""), IF(#REF!<>0, "- "&#REF!&" ", ""), IF(#REF!<>0, "- "&#REF!&" ", ""), IF(#REF!<>0, "- "&#REF!&" ", ""), IF(#REF!<>0, "- "&#REF!&" ", ""), IF(#REF!<>0, "- "&#REF!&" -", "- ")) ->  | H36: Contributor | I36: Amount | J36: %
C37: Travel | D37: =#REF! ->  | E37: =#REF! ->  | F37: =#REF! ->  | G37: =CONCATENATE(IF(#REF!<>0, "- "&#REF!&" ", ""), IF(#REF!<>0, "- "&#REF!&" ", ""), IF(#REF!<>0, "- "&#REF!&" ", ""), IF(#REF!<>0, "- "&#REF!&" ", ""), IF(#REF!<>0, "- "&#REF!&" ", ""), IF(#REF!<>0, "- "&#REF!&" ", ""), IF(#REF!<>0, "- "&#REF!&" ", ""), IF(#REF!<>0, "- "&#REF!&" ", ""), IF(#REF!<>0, "- "&#REF!&" ", ""), IF(#REF!<>0, "- "&#REF!&" ", ""), IF(#REF!<>0, "- "&#REF!&" -", "- ")) ->  | H37: SDTC | I37: =D42*J37 ->  | J37: ='DEPFC - CA'!$C$75 -> 
C38: Equipment | D38: =#REF! ->  | E38: =#REF! ->  | F38: =#REF! ->  | G38: =CONCATENATE(IF(#REF!<>0, "- "&#REF!&" ", ""), IF(#REF!<>0, "- "&#REF!&" ", ""), IF(#REF!<>0, "- "&#REF!&" ", ""), IF(#REF!<>0, "- "&#REF!&" ", ""), IF(#REF!<>0, "- "&#REF!&" ", ""), IF(#REF!<>0, "- "&#REF!&" ", ""), IF(#REF!<>0, "- "&#REF!&" ", ""), IF(#REF!<>0, "- "&#REF!&" ", ""), IF(#REF!<>0, "- "&#REF!&" ", ""), IF(#REF!<>0, "- "&#REF!&" ", ""), IF(#REF!<>0, "- "&#REF!&" -", "- ")) -> 
C39: Sub-contractors & Consultants | D39: =#REF! ->  | E39: =#REF! ->  | F39: =#REF! ->  | G39: =CONCATENATE(IF(#REF!<>0, "- "&#REF!&" ", ""), IF(#REF!<>0, "- "&#REF!&" ", ""), IF(#REF!<>0, "- "&#REF!&" ", ""), IF(#REF!<>0, "- "&#REF!&" ", ""), IF(#REF!<>0, "- "&#REF!&" ", ""), IF(#REF!<>0, "- "&#REF!&" ", ""), IF(#REF!<>0, "- "&#REF!&" ", ""), IF(#REF!<>0, "- "&#REF!&" ", ""), IF(#REF!<>0, "- "&#REF!&" ", ""), IF(#REF!<>0, "- "&#REF!&" ", ""), IF(#REF!<>0, "- "&#REF!&" -", "- ")) ->  | H39: Other | I39: =D41-I37 ->  | J39: =IF(D42<>0,I39/D42,) -> 
C40: Other Costs | D40: =#REF! ->  | E40: =#REF! ->  | F40: =#REF! ->  | G40: =CONCATENATE(IF(#REF!<>0, "- "&#REF!&" ", ""), IF(#REF!<>0, "- "&#REF!&" ", ""), IF(#REF!<>0, "- "&#REF!&" ", ""), IF(#REF!<>0, "- "&#REF!&" ", ""), IF(#REF!<>0, "- "&#REF!&" ", ""), IF(#REF!<>0, "- "&#REF!&" ", ""), IF(#REF!<>0, "- "&#REF!&" ", ""), IF(#REF!<>0, "- "&#REF!&" ", ""), IF(#REF!<>0, "- "&#REF!&" ", ""), IF(#REF!<>0, "- "&#REF!&" ", ""), IF(#REF!<>0, "- "&#REF!&" -", "- ")) -> 
C41: Totals for Milestone 4: | D41: =SUM(D36:D40) ->  | E41: =SUM(E36:E40) ->  | F41: =SUM(F36:F40) ->  | G41: =IF(D42<>0,E41/D42,) ->  | H41: =IF(D42<>0,D41/D42,) -> 
D42: =D41+E41 -> 
A43: =MS_5 -> 00:00:00 | B43: Milestone 5 | C43: Labour | D43: =#REF! ->  | E43: =#REF! ->  | F43: =#REF! ->  | G43: =CONCATENATE(IF(#REF!<>0, "- "&#REF!&" ", ""), IF(#REF!<>0, "- "&#REF!&" ", ""), IF(#REF!<>0, "- "&#REF!&" ", ""), IF(#REF!<>0, "- "&#REF!&" ", ""), IF(#REF!<>0, "- "&#REF!&" ", ""), IF(#REF!<>0, "- "&#REF!&" ", ""), IF(#REF!<>0, "- "&#REF!&" ", ""), IF(#REF!<>0, "- "&#REF!&" ", ""), IF(#REF!<>0, "- "&#REF!&" ", ""), IF(#REF!<>0, "- "&#REF!&" ", ""), IF(#REF!<>0, "- "&#REF!&" -", "- ")) ->  | H43: Contributor | I43: Amount | J43: %
C44: Travel | D44: =#REF! ->  | E44: =#REF! ->  | F44: =#REF! ->  | G44: =CONCATENATE(IF(#REF!<>0, "- "&#REF!&" ", ""), IF(#REF!<>0, "- "&#REF!&" ", ""), IF(#REF!<>0, "- "&#REF!&" ", ""), IF(#REF!<>0, "- "&#REF!&" ", ""), IF(#REF!<>0, "- "&#REF!&" ", ""), IF(#REF!<>0, "- "&#REF!&" ", ""), IF(#REF!<>0, "- "&#REF!&" ", ""), IF(#REF!<>0, "- "&#REF!&" ", ""), IF(#REF!<>0, "- "&#REF!&" ", ""), IF(#REF!<>0, "- "&#REF!&" ", ""), IF(#REF!<>0, "- "&#REF!&" -", "- ")) ->  | H44: SDTC | I44: =D49*J44 ->  | J44: ='DEPFC - CA'!$C$75 -> 
C45: Equipment | D45: =#REF! ->  | E45: =#REF! ->  | F45: =#REF! ->  | G45: =CONCATENATE(IF(#REF!<>0, "- "&#REF!&" ", ""), IF(#REF!<>0, "- "&#REF!&" ", ""), IF(#REF!<>0, "- "&#REF!&" ", ""), IF(#REF!<>0, "- "&#REF!&" ", ""), IF(#REF!<>0, "- "&#REF!&" ", ""), IF(#REF!<>0, "- "&#REF!&" ", ""), IF(#REF!<>0, "- "&#REF!&" ", ""), IF(#REF!<>0, "- "&#REF!&" ", ""), IF(#REF!<>0, "- "&#REF!&" ", ""), IF(#REF!<>0, "- "&#REF!&" ", ""), IF(#REF!<>0, "- "&#REF!&" -", "- ")) -> 
C46: Sub-contractors & Consultants | D46: =#REF! ->  | E46: =#REF! ->  | F46: =#REF! ->  | G46: =CONCATENATE(IF(#REF!<>0, "- "&#REF!&" ", ""), IF(#REF!<>0, "- "&#REF!&" ", ""), IF(#REF!<>0, "- "&#REF!&" ", ""), IF(#REF!<>0, "- "&#REF!&" ", ""), IF(#REF!<>0, "- "&#REF!&" ", ""), IF(#REF!<>0, "- "&#REF!&" ", ""), IF(#REF!<>0, "- "&#REF!&" ", ""), IF(#REF!<>0, "- "&#REF!&" ", ""), IF(#REF!<>0, "- "&#REF!&" ", ""), IF(#REF!<>0, "- "&#REF!&" ", ""), IF(#REF!<>0, "- "&#REF!&" -", "- ")) ->  | H46: Other | I46: =D48-I44 ->  | J46: =IF(D49<>0,I46/D49,) -> 
C47: Other Costs | D47: =#REF! ->  | E47: =#REF! ->  | F47: =#REF! ->  | G47: =CONCATENATE(IF(#REF!<>0, "- "&#REF!&" ", ""), IF(#REF!<>0, "- "&#REF!&" ", ""), IF(#REF!<>0, "- "&#REF!&" ", ""), IF(#REF!<>0, "- "&#REF!&" ", ""), IF(#REF!<>0, "- "&#REF!&" ", ""), IF(#REF!<>0, "- "&#REF!&" ", ""), IF(#REF!<>0, "- "&#REF!&" ", ""), IF(#REF!<>0, "- "&#REF!&" ", ""), IF(#REF!<>0, "- "&#REF!&" ", ""), IF(#REF!<>0, "- "&#REF!&" ", ""), IF(#REF!<>0, "- "&#REF!&" -", "- ")) -> 
C48: Totals for Milestone 5: | D48: =SUM(D43:D47) ->  | E48: =SUM(E43:E47) ->  | F48: =SUM(F43:F47) ->  | G48: =IF(D49<>0,E48/D49,) ->  | H48: =IF(D49<>0,D48/D49,) -> 
D49: =D48+E48 -> 
A50: =Instructions!#REF! ->  | B50: Milestone 6 | C50: Labour | D50: =#REF! ->  | E50: =#REF! ->  | F50: =#REF! ->  | G50: =CONCATENATE(IF(#REF!<>0, "- "&#REF!&" ", ""), IF(#REF!<>0, "- "&#REF!&" ", ""), IF(#REF!<>0, "- "&#REF!&" ", ""), IF(#REF!<>0, "- "&#REF!&" ", ""), IF(#REF!<>0, "- "&#REF!&" ", ""), IF(#REF!<>0, "- "&#REF!&" ", ""), IF(#REF!<>0, "- "&#REF!&" ", ""), IF(#REF!<>0, "- "&#REF!&" ", ""), IF(#REF!<>0, "- "&#REF!&" ", ""), IF(#REF!<>0, "- "&#REF!&" ", ""), IF(#REF!<>0, "- "&#REF!&" -", "- ")) ->  | H50: Contributor | I50: Amount | J50: %
C51: Travel | D51: =#REF! ->  | E51: =#REF! ->  | F51: =#REF! ->  | G51: =CONCATENATE(IF(#REF!<>0, "- "&#REF!&" ", ""), IF(#REF!<>0, "- "&#REF!&" ", ""), IF(#REF!<>0, "- "&#REF!&" ", ""), IF(#REF!<>0, "- "&#REF!&" ", ""), IF(#REF!<>0, "- "&#REF!&" ", ""), IF(#REF!<>0, "- "&#REF!&" ", ""), IF(#REF!<>0, "- "&#REF!&" ", ""), IF(#REF!<>0, "- "&#REF!&" ", ""), IF(#REF!<>0, "- "&#REF!&" ", ""), IF(#REF!<>0, "- "&#REF!&" ", ""), IF(#REF!<>0, "- "&#REF!&" -", "- ")) ->  | H51: SDTC | I51: =D56*J51 ->  | J51: ='DEPFC - CA'!$C$75 -> 
C52: Equipment | D52: =#REF! ->  | E52: =#REF! ->  | F52: =#REF! ->  | G52: =CONCATENATE(IF(#REF!<>0, "- "&#REF!&" ", ""), IF(#REF!<>0, "- "&#REF!&" ", ""), IF(#REF!<>0, "- "&#REF!&" ", ""), IF(#REF!<>0, "- "&#REF!&" ", ""), IF(#REF!<>0, "- "&#REF!&" ", ""), IF(#REF!<>0, "- "&#REF!&" ", ""), IF(#REF!<>0, "- "&#REF!&" ", ""), IF(#REF!<>0, "- "&#REF!&" ", ""), IF(#REF!<>0, "- "&#REF!&" ", ""), IF(#REF!<>0, "- "&#REF!&" ", ""), IF(#REF!<>0, "- "&#REF!&" -", "- ")) -> 
C53: Sub-contractors & Consultants | D53: =#REF! ->  | E53: =#REF! ->  | F53: =#REF! ->  | G53: =CONCATENATE(IF(#REF!<>0, "- "&#REF!&" ", ""), IF(#REF!<>0, "- "&#REF!&" ", ""), IF(#REF!<>0, "- "&#REF!&" ", ""), IF(#REF!<>0, "- "&#REF!&" ", ""), IF(#REF!<>0, "- "&#REF!&" ", ""), IF(#REF!<>0, "- "&#REF!&" ", ""), IF(#REF!<>0, "- "&#REF!&" ", ""), IF(#REF!<>0, "- "&#REF!&" ", ""), IF(#REF!<>0, "- "&#REF!&" ", ""), IF(#REF!<>0, "- "&#REF!&" ", ""), IF(#REF!<>0, "- "&#REF!&" -", "- ")) ->  | H53: Other | I53: =D55-I51 ->  | J53: =IF(D56<>0,I53/D56,) -> 
C54: Other Costs | D54: =#REF! ->  | E54: =#REF! ->  | F54: =#REF! ->  | G54: =CONCATENATE(IF(#REF!<>0, "- "&#REF!&" ", ""), IF(#REF!<>0, "- "&#REF!&" ", ""), IF(#REF!<>0, "- "&#REF!&" ", ""), IF(#REF!<>0, "- "&#REF!&" ", ""), IF(#REF!<>0, "- "&#REF!&" ", ""), IF(#REF!<>0, "- "&#REF!&" ", ""), IF(#REF!<>0, "- "&#REF!&" ", ""), IF(#REF!<>0, "- "&#REF!&" ", ""), IF(#REF!<>0, "- "&#REF!&" ", ""), IF(#REF!<>0, "- "&#REF!&" ", ""), IF(#REF!<>0, "- "&#REF!&" -", "- ")) -> 
C55: Totals for Milestone 6: | D55: =SUM(D50:D54) ->  | E55: =SUM(E50:E54) ->  | F55: =SUM(F50:F54) ->  | G55: =IF(D56<>0,E55/D56,) ->  | H55: =IF(D56<>0,D55/D56,) -> 
D56: =D55+E55 -> 
A57: =project_end -> 00:00:00 | B57: Milestone 7 | C57: Labour | D57: =#REF! ->  | E57: =#REF! ->  | F57: =#REF! ->  | G57: =CONCATENATE(IF(#REF!<>0, "- "&#REF!&" ", ""), IF(#REF!<>0, "- "&#REF!&" ", ""), IF(#REF!<>0, "- "&#REF!&" ", ""), IF(#REF!<>0, "- "&#REF!&" ", ""), IF(#REF!<>0, "- "&#REF!&" ", ""), IF(#REF!<>0, "- "&#REF!&" ", ""), IF(#REF!<>0, "- "&#REF!&" ", ""), IF(#REF!<>0, "- "&#REF!&" ", ""), IF(#REF!<>0, "- "&#REF!&" ", ""), IF(#REF!<>0, "- "&#REF!&" ", ""), IF(#REF!<>0, "- "&#REF!&" -", "- ")) ->  | H57: Contributor | I57: Amount | J57: %
C58: Travel | D58: =#REF! ->  | E58: =#REF! ->  | F58: =#REF! ->  | G58: =CONCATENATE(IF(#REF!<>0, "- "&#REF!&" ", ""), IF(#REF!<>0, "- "&#REF!&" ", ""), IF(#REF!<>0, "- "&#REF!&" ", ""), IF(#REF!<>0, "- "&#REF!&" ", ""), IF(#REF!<>0, "- "&#REF!&" ", ""), IF(#REF!<>0, "- "&#REF!&" ", ""), IF(#REF!<>0, "- "&#REF!&" ", ""), IF(#REF!<>0, "- "&#REF!&" ", ""), IF(#REF!<>0, "- "&#REF!&" ", ""), IF(#REF!<>0, "- "&#REF!&" ", ""), IF(#REF!<>0, "- "&#REF!&" -", "- ")) ->  | H58: SDTC | I58: =D63*J58 ->  | J58: ='DEPFC - CA'!$C$75 -> 
C59: Equipment | D59: =#REF! ->  | E59: =#REF! ->  | F59: =#REF! ->  | G59: =CONCATENATE(IF(#REF!<>0, "- "&#REF!&" ", ""), IF(#REF!<>0, "- "&#REF!&" ", ""), IF(#REF!<>0, "- "&#REF!&" ", ""), IF(#REF!<>0, "- "&#REF!&" ", ""), IF(#REF!<>0, "- "&#REF!&" ", ""), IF(#REF!<>0, "- "&#REF!&" ", ""), IF(#REF!<>0, "- "&#REF!&" ", ""), IF(#REF!<>0, "- "&#REF!&" ", ""), IF(#REF!<>0, "- "&#REF!&" ", ""), IF(#REF!<>0, "- "&#REF!&" ", ""), IF(#REF!<>0, "- "&#REF!&" -", "- ")) -> 
C60: Sub-contractors & Consultants | D60: =#REF! ->  | E60: =#REF! ->  | F60: =#REF! ->  | G60: =CONCATENATE(IF(#REF!<>0, "- "&#REF!&" ", ""), IF(#REF!<>0, "- "&#REF!&" ", ""), IF(#REF!<>0, "- "&#REF!&" ", ""), IF(#REF!<>0, "- "&#REF!&" ", ""), IF(#REF!<>0, "- "&#REF!&" ", ""), IF(#REF!<>0, "- "&#REF!&" ", ""), IF(#REF!<>0, "- "&#REF!&" ", ""), IF(#REF!<>0, "- "&#REF!&" ", ""), IF(#REF!<>0, "- "&#REF!&" ", ""), IF(#REF!<>0, "- "&#REF!&" ", ""), IF(#REF!<>0, "- "&#REF!&" -", "- ")) ->  | H60: Other | I60: =D62-I58 ->  | J60: =IF(D63<>0,I60/D63,) -> 
C61: Other Costs | D61: =#REF! ->  | E61: =#REF! ->  | F61: =#REF! ->  | G61: =CONCATENATE(IF(#REF!<>0, "- "&#REF!&" ", ""), IF(#REF!<>0, "- "&#REF!&" ", ""), IF(#REF!<>0, "- "&#REF!&" ", ""), IF(#REF!<>0, "- "&#REF!&" ", ""), IF(#REF!<>0, "- "&#REF!&" ", ""), IF(#REF!<>0, "- "&#REF!&" ", ""), IF(#REF!<>0, "- "&#REF!&" ", ""), IF(#REF!<>0, "- "&#REF!&" ", ""), IF(#REF!<>0, "- "&#REF!&" ", ""), IF(#REF!<>0, "- "&#REF!&" ", ""), IF(#REF!<>0, "- "&#REF!&" -", "- ")) -> 
C62: Totals for Milestone 7: | D62: =SUM(D57:D61) ->  | E62: =SUM(E57:E61) ->  | F62: =SUM(F57:F61) ->  | G62: =IF(D63<>0,E62/D63,) ->  | H62: =IF(D63<>0,D62/D63,) -> 
D63: =D62+E62 -> 
C64: Totals for all Milestones: | D64: =D20+D27+D34+D41+D48+D55+D62 ->  | E64: =E20+E27+E34+E41+E48+E55+E62 ->  | F64: =F20+F27+F34+F41+F48+F55+F62 ->  | G64: =IF(D65<>0,E64/D65,) ->  | H64: =IF(D65<>0,D64/D65,) -> 
C65: Totals Eligible Project Costs: | D65: =D64+E64 -> 
C66: Total Project Costs: | D66: =D65+F64 -> 

Sheet Labour
A1: Project Labour Expense Forecast
A2: ERA PROJECT NUMBER | B2: =SOI -> 555555
A3: PROJECT LEAD | B3: =Instructions!C9 -> Winterfell
A4: PROJECT TITLE | B4: =Company_name -> Elsa's Winter Castle
A6: Location | B6: Jobs Created (FTE) due to the project being funded | C6: Location(s), if outside Alberta
A7: In Alberta
A8: In Canada, but outside Alberta
A9: Outside Canada
A10: TOTAL Jobs | B10: =SUM(B7:C9) -> 0
Y11: Summary of Geographical Spending
A12: Employer (Applicant or Partner) | B12: Title/Function of employee | C12: Location of Employee | D12: Project Expense: Eligible (E) or Ineligible (I) | E12: Total Project Salary Expense ($) | F12: Total Fringe Benefits expense for employee [Maximum is 20% of salary expense] | G12: Indicate which Milestone this expense occurs in | H12: % of Fringe benefits | I12: Total Eligible Fringe Benefits | J12: Total Ineligible fringe benefits | K12: Total Eligible Labour Expense | L12: Total Ineligible Labour Expense | M12: Total Labour expense | O12: Eligible Labour expense in Alberta | P12: Eligible Labour expense in Canada, but outside Alberta | Q12: Eligible Labour Expense Outside of Canada
A13: Winterfell | B13: PM | C13: In Alberta | D13: E | E13: 200000 | F13: 100000 | G13: M5 | H13: =IFERROR(F13/E13,0) -> 0.5 | I13: =IF(D13="E",IF(H13>20%,IF(D13="E",E13*0.2,E13*H13),E13*H13),0) -> 40000 | J13: =IF(D13="E",IF(H13>0.2,(H13-0.2)*E13,0),E13*H13) -> 60000 | K13: =IF(D13="E",E13,0)+I13 -> 240000 | L13: =IF(D13="I",E13,0)+J13 -> 60000 | M13: =SUM(K13:L13) -> 300000 | O13: =IF((AND(C13="In Alberta",D13="E")),(E13+F13),0) -> 300000 | P13: =IF((AND(C13="In Canada, but outside Alberta",D13="E")),(E13+F13),0) -> 0 | Q13: =IF((AND(C13="Outside Canada",D13="E")),(E13+F13),0) -> 0
A14: Winterfell | B14: PM | C14: In Alberta | D14: E | E14: 200000 | F14: 0 | G14: M5 | H14: =IFERROR(F14/E14,0) -> 0 | I14: 0 | J14: =IF(D14="E",IF(H14>0.2,(H14-0.2)*E14,0),E14*H14) -> 0 | K14: =IF(D14="E",E14,0)+I14 -> 200000 | L14: =IF(D14="I",E14,0)+J14 -> 0 | M14: =SUM(K14:L14) -> 200000 | O14: 200000 | P14: 0 | Q14: =IF((AND(C14="Outside Canada",D14="E")),(E14+F14),0) -> 0 | AC14: Y
A15: Gemstone drilling | B15: Eng | C15: In Alberta | D15: I | E15: 200000 | F15: 0 | G15: M3 | H15: 0 | I15: 0 | J15: 0 | K15: 0 | L15: 200000 | M15: 200000 | O15: 0 | P15: 0 | Q15: 0 | AC15: N
A16: castle construction | B16: Eng | C16: In Alberta | D16: I | E16: 200000 | F16: 0 | G16: M3 | H16: 0 | I16: 0 | J16: 0 | K16: 0 | L16: 200000 | M16: 200000 | O16: 0 | P16: 0 | Q16: 0
A17: SpringBank Oil | B17: eng | C17: In Alberta | D17: E | E17: 200000 | F17: 0 | G17: M3 | H17: 0 | I17: 0 | J17: 0 | K17: 200000 | L17: 0 | M17: 200000 | O17: 200000 | P17: 0 | Q17: 0
A18: SpringBank Oil | B18: Eng | C18: In Alberta | D18: E | E18: 200000 | F18: 0 | G18: M12 | H18: 0 | I18: 0 | J18: 0 | K18: 200000 | L18: 0 | M18: 200000 | O18: 200000 | P18: 0 | Q18: 0
A19: Gemstone drilling | B19: yy | C19: In Canada, but outside Alberta | D19: I | E19: 200000 | F19: 0 | G19: M4 | H19: 0 | I19: 0 | J19: 0 | K19: 0 | L19: 200000 | M19: 200000 | O19: 0 | P19: 0 | Q19: 0
A20: SpringBank Oil | B20: yy | C20: In Canada, but outside Alberta | D20: E | E20: 200000 | F20: 0 | G20: All | H20: 0 | I20: 0 | J20: 0 | K20: 200000 | L20: 0 | M20: 200000 | O20: 0 | P20: 200000 | Q20: 0
A21: castle construction | C21: In Canada, but outside Alberta | D21: I | E21: 200000 | F21: 0 | G21: All | H21: 0 | I21: 0 | J21: 0 | K21: 0 | L21: 200000 | M21: 200000 | O21: 0 | P21: 0 | Q21: 0
A22: castle construction | C22: In Canada, but outside Alberta | D22: E | E22: 200000 | F22: 0 | G22: M5 | H22: 0 | I22: 0 | J22: 0 | K22: 200000 | L22: 0 | M22: 200000 | O22: 0 | P22: 200000 | Q22: 0
A23: castle construction | C23: In Canada, but outside Alberta | D23: E | E23: 200000 | F23: 0 | G23: All | H23: 0 | I23: 0 | J23: 0 | K23: 200000 | L23: 0 | M23: 200000 | O23: 0 | P23: 200000 | Q23: 0
A24: Winterfell | C24: In Canada, but outside Alberta | D24: E | E24: 200000 | F24: 0 | G24: M11 | H24: 0 | I24: 0 | J24: 0 | K24: 200000 | L24: 0 | M24: 200000 | O24: 0 | P24: 200000 | Q24: 0
A25: Gemstone drilling | C25: In Alberta | D25: I | E25: 200000 | F25: 0 | G25: M11 | H25: 0 | I25: 0 | J25: 0 | K25: 0 | L25: 200000 | M25: 200000 | O25: 0 | P25: 0 | Q25: 0
A26: Gemstone drilling | C26: Outside Canada | D26: E | E26: 200000 | F26: 0 | G26: M13 | H26: 0 | I26: 0 | J26: 0 | K26: =IF(D26="E",E26,0)+I26 -> 200000 | L26: =IF(D26="I",E26,0)+J26 -> 0 | M26: =SUM(K26:L26) -> 200000 | O26: =IF((AND(C26="In Alberta",D26="E")),(E26+F26),0) -> 0 | P26: =IF((AND(C26="In Canada, but outside Alberta",D26="E")),(E26+F26),0) -> 0 | Q26: =IF((AND(C26="Outside Canada",D26="E")),(E26+F26),0) -> 200000
A27: Gemstone drilling | C27: In Canada, but outside Alberta | D27: E | E27: 200000 | F27: 0 | G27: M12 | H27: 0 | I27: 0 | J27: 0 | K27: 200000 | L27: 0 | M27: 200000 | O27: 0 | P27: 200000 | Q27: 0
A28: Gemstone drilling | C28: In Canada, but outside Alberta | D28: I | E28: 200000 | F28: 0 | G28: M5 | H28: 0 | I28: 0 | J28: 0 | K28: 0 | L28: 200000 | M28: 200000 | O28: 0 | P28: 0 | Q28: 0
D29: I | E29: 200000 | F29: 0 | G29: M13 | H29: 0 | I29: 0 | J29: 0 | K29: 0 | L29: 200000 | M29: 200000 | O29: 0 | P29: 0 | Q29: 0
D30: E | E30: 200000 | F30: 0 | G30: All | H30: 0 | I30: 0 | J30: 0 | K30: 200000 | L30: 0 | M30: 200000 | O30: 0 | P30: 0 | Q30: 0
E31: =SUM(E13:E30) -> 3600000 | F31: =SUM(F13:F30) -> 100000 | K31: =SUM(K13:K30) -> 2240000 | L31: =SUM(L13:L30) -> 1460000 | M31: =SUM(M13:M30) -> 3700000 | O31: =SUM(O13:O30) -> 900000 | P31: =SUM(P13:P30) -> 1000000 | Q31: =SUM(Q13:Q30) -> 200000
A33: Milestone summary - Eligible Labor Expense by Milestone
A34: Milestone 1 | B34: Milestone 2 | C34: Milestone 3 | D34: Milestone 4 | E34: Milestone 5 | F34: Milestone 6 | G34: Milestone 7 | H34: Milestone 8 | I34: Milestone 9 | J34: Milestone 10 | K34: Milestone 11 | L34: Milestone 12 | M34: Milestone 13 | N34: Milestone 14 | O34: Milestone 15 | P34: Total
A35: =A36/$P$36 -> 0.01785714286 | B35: 0.01785714286 | C35: 0.1071428571 | D35: 0.01785714286 | E35: 0.3035714286 | F35: 0.01785714286 | G35: 0.01785714286 | H35: 0.01785714286 | I35: 0.01785714286 | J35: 0.01785714286 | K35: 0.1071428571 | L35: 0.1964285714 | M35: 0.1071428571 | N35: 0.01785714286 | O35: 0.01785714286 | P35: =SUM(A35:O35) -> 1
A36: =(SUMIF(G13:G30,"M1",K13:K30))+(A37/Instructions!$C$8) -> 40000 | B36: =SUMIF(G13:G30,"M2",K13:K30)+A37/Instructions!C8 -> 40000 | C36: =SUMIF(G13:G30,"M3",K13:K30)+A37/Instructions!C8 -> 240000 | D36: =SUMIF(G13:G30,"M4",K13:K30)+A37/Instructions!C8 -> 40000 | E36: =SUMIF(G13:G30,"M5",K13:K30)+A37/Instructions!C8 -> 680000 | F36: =SUMIF(G13:G30,"M6",K13:K30)+A37/Instructions!C8 -> 40000 | G36: =SUMIF(G13:G30,"M7",K13:K30)+A37/Instructions!C8 -> 40000 | H36: =SUMIF(G13:G30,"M8",K13:K30)+A37/Instructions!C8 -> 40000 | I36: =SUMIF(G13:G30,"M9",K13:K30)+A37/Instructions!C8 -> 40000 | J36: =SUMIF(G13:G30,"M10",K13:K30)+A37/Instructions!C8 -> 40000 | K36: =SUMIF(G13:G30,"M11",K13:K30)+$A$37/Instructions!$C$8 -> 240000 | L36: =SUMIF(G13:G30,"M12",K13:K30)+$A$37/Instructions!$C$8 -> 440000 | M36: =SUMIF(G13:G30,"M13",K13:K30)+$A$37/Instructions!$C$8 -> 240000 | N36: =SUMIF(G13:G30,"M14",K13:K30)+$A$37/Instructions!$C$8 -> 40000 | O36: =SUMIF(G13:G30,"M15",K13:K30)+$A$37/Instructions!$C$8 -> 40000 | P36: =SUM(A36:O36) -> 2240000 | Q36: Please delete data from this row for un-used milestones
A37: =SUMIF(G13:G30,"All",K13:K30) -> 600000
A39: Milestone summary - inEligible Labor Expense by Milestone
A40: Milestone 1 | B40: Milestone 2 | C40: Milestone 3 | D40: Milestone 4 | E40: Milestone 5 | F40: Milestone 6 | G40: Milestone 7 | H40: Milestone 8 | I40: Milestone 9 | J40: Milestone 10 | K40: Milestone 11 | L40: Milestone 12 | M40: Milestone 13 | N40: Milestone 14 | O40: Milestone 15 | P40: Total
A41: =A42/$P$42 -> 0.009132420091 | B41: 0.009132420091 | C41: 0.2831050228 | D41: 0.1461187215 | E41: 0.1872146119 | F41: 0.009132420091 | G41: 0.009132420091 | H41: 0.009132420091 | I41: 0.009132420091 | J41: 0.009132420091 | K41: 0.1461187215 | L41: 0.009132420091 | M41: 0.1461187215 | N41: 0.009132420091 | O41: 0.009132420091 | P41: =SUM(A41:O41) -> 1
A42: =(SUMIF(G13:G30,"M1",L13:L30))+(A43/Instructions!$C$8) -> 13333.33333 | B42: =SUMIF(G13:G30,"M2",L13:L30)+(A43/Instructions!$C$8) -> 13333.33333 | C42: =SUMIF(G13:G30,"M3",L13:L30)+(A43/Instructions!$C$8) -> 413333.3333 | D42: =SUMIF(G13:G30,"M4",L13:L30)+(A43/Instructions!$C$8) -> 213333.3333 | E42: =SUMIF(G13:G30,"M5",L13:L30)+(A43/Instructions!$C$8) -> 273333.3333 | F42: =SUMIF(G13:G30,"M6",L13:L30)+(A43/Instructions!$C$8) -> 13333.33333 | G42: =SUMIF(G13:G30,"M7",L13:L30)+(A43/Instructions!$C$8) -> 13333.33333 | H42: =SUMIF(G13:G30,"M8",L13:L30)+(A43/Instructions!$C$8) -> 13333.33333 | I42: =SUMIF(G13:G30,"M9",L13:L30)+(A43/Instructions!$C$8) -> 13333.33333 | J42: =SUMIF(G13:G30,"M10",L13:L30)+(A43/Instructions!$C$8) -> 13333.33333 | K42: =SUMIF(G13:G30,"M11",L13:L30)+(A43/Instructions!$C$8) -> 213333.3333 | L42: =SUMIF(G13:G30,"M12",L13:L30)+(A43/Instructions!$C$8) -> 13333.33333 | M42: =SUMIF(G13:G30,"M13",L13:L30)+(A43/Instructions!$C$8) -> 213333.3333 | N42: =SUMIF(G13:G30,"M14",L13:L30)+(A43/Instructions!$C$8) -> 13333.33333 | O42: =SUMIF(G13:G30,"M15",L13:L30)+(A43/Instructions!$C$8) -> 13333.33333 | P42: =SUM(A42:O42) -> 1460000 | Q42: Please delete data from this row for un-used milestones
A43: =SUMIF(G13:G30,"All",L13:L30) -> 200000

Sheet Equip
A1: Project Equipment Expense Forecast
A2: ERA PROJECT NUMBER | B2: =SOI -> 555555
A3: PROJECT LEAD | B3: =Instructions!C9 -> Winterfell
A4: PROJECT TITLE | B4: =Company_name -> Elsa's Winter Castle
A7: Project Partner (e.g. entity funding equipment) (if applicable) | B7: Vendor (if applicable) | C7: Item Description | D7: Indicate which Milestone this expense occurs in | E7: Location of Vendor/Service Provider | F7: Project Expense: Eligible (E) or Ineligible (I) | G7: Total Item Cost (CAD) | H7: Eligible Equipment Expense | I7: Ineligible Equipment Expense | J7: Total Equipment Expense | L7: Eligible Economic spend Inside Alberta | M7: Eligible Economic spend In Canada, but outside Alberta | N7: Eligible Economic spend Outside of Canada
A8: Winterfell | D8: M7 | E8: In Alberta | F8: E | G8: 5000 | H8: =IF(F8="E",G8,0) -> 5000 | I8: =IF(F8="I",G8,0) -> 0 | J8: =G8 -> 5000 | L8: =IF(E8="In Alberta",H8,0) -> 5000 | M8: =IF(E8="In Canada, but outside Alberta",H8,0) -> 0 | N8: =IF(E8="Outside of Canada",H8,0) -> 0
A9: Gemstone drilling | D9: M8 | E9: In Alberta | F9: I | G9: 5000 | H9: =IF(F9="E",G9,0) -> 0 | I9: =IF(F9="I",G9,0) -> 5000 | J9: =G9 -> 5000 | L9: =IF(E9="In Alberta",H9,0) -> 0 | M9: =IF(E9="In Canada, but outside Alberta",H9,0) -> 0 | N9: =IF(E9="Outside of Canada",H9,0) -> 0 | AC9: Y
A10: NRCAN | D10: M9 | F10: I | G10: 5000 | H10: 0 | I10: 5000 | J10: 5000 | L10: 0 | M10: 0 | N10: 0 | AC10: N
D11: M10 | F11: E | G11: 5000 | H11: 5000 | I11: 0 | J11: 5000 | L11: 0 | M11: 0 | N11: 0
D12: M11 | F12: I | G12: 5000 | H12: 0 | I12: 5000 | J12: 5000 | L12: 0 | M12: 0 | N12: 0
D13: M12 | F13: E | G13: 5000 | H13: 5000 | I13: 0 | J13: 5000 | L13: 0 | M13: 0 | N13: 0
D14: M13 | F14: E | G14: 5000 | H14: 5000 | I14: 0 | J14: 5000 | L14: 0 | M14: 0 | N14: 0
D15: M14 | F15: I | G15: 5000 | H15: 0 | I15: 5000 | J15: 5000 | L15: 0 | M15: 0 | N15: 0
D16: M15 | F16: I | G16: 5000 | H16: 0 | I16: 5000 | J16: 5000 | L16: 0 | M16: 0 | N16: 0
D17: M2 | F17: E | G17: 5000 | H17: 5000 | I17: 0 | J17: 5000 | L17: 0 | M17: 0 | N17: 0
D18: M3 | F18: E | G18: 5000 | H18: 5000 | I18: 0 | J18: 5000 | L18: 0 | M18: 0 | N18: 0
D19: M4 | F19: E | G19: 5000 | H19: 5000 | I19: 0 | J19: 5000 | L19: 0 | M19: 0 | N19: 0
D20: M13 | F20: E | G20: 5000 | H20: 5000 | I20: 0 | J20: 5000 | L20: 0 | M20: 0 | N20: 0
G21: =SUM(G8:G20) -> 65000 | H21: =SUM(H8:H20) -> 40000 | I21: =SUM(I8:I20) -> 25000 | J21: =SUM(J8:J20) -> 65000 | L21: =SUM(L8:L20) -> 5000 | M21: =SUM(M8:M20) -> 0 | N21: =SUM(N8:N20) -> 0
A25: Milestone summary - Eligible Expense by Milestone
A26: Milestone 1 | B26: Milestone 2 | C26: Milestone 3 | D26: Milestone 4 | E26: Milestone 5 | F26: Milestone 6 | G26: Milestone 7 | H26: Milestone 8 | I26: Milestone 9 | J26: Milestone 10 | K26: Milestone 11 | L26: Milestone 12 | M26: Milestone 13 | N26: Milestone 14 | O26: Milestone 15 | P26: Total
A27: =A28/$P$28 -> 0 | B27: 0.125 | C27: 0.125 | D27: 0.125 | E27: 0 | F27: 0 | G27: 0.125 | H27: 0 | I27: 0 | J27: 0.125 | K27: 0 | L27: 0.125 | M27: =M28/$P$28 -> 0.25 | N27: 0 | O27: 0 | P27: =SUM(A27:O27) -> 1
A28: =(SUMIF($D$8:$D$20,"M1",$H$8:$H$20))+($A$29/Instructions!$C$8) -> 0 | B28: =(SUMIF($D$8:$D$20,"M2",$H$8:$H$20))+($A$29/Instructions!$C$8) -> 5000 | C28: =(SUMIF($D$8:$D$20,"M3",$H$8:$H$20))+($A$29/Instructions!$C$8) -> 5000 | D28: =(SUMIF($D$8:$D$20,"M4",$H$8:$H$20))+($A$29/Instructions!$C$8) -> 5000 | E28: =(SUMIF($D$8:$D$20,"M5",$H$8:$H$20))+($A$29/Instructions!$C$8) -> 0 | F28: =(SUMIF($D$8:$D$20,"M6",$H$8:$H$20))+($A$29/Instructions!$C$8) -> 0 | G28: =(SUMIF($D$8:$D$20,"M7",$H$8:$H$20))+($A$29/Instructions!$C$8) -> 5000 | H28: =(SUMIF($D$8:$D$20,"M8",$H$8:$H$20))+($A$29/Instructions!$C$8) -> 0 | I28: =(SUMIF($D$8:$D$20,"M9",$H$8:$H$20))+($A$29/Instructions!$C$8) -> 0 | J28: =(SUMIF($D$8:$D$20,"M10",$H$8:$H$20))+($A$29/Instructions!$C$8) -> 5000 | K28: =(SUMIF($D$8:$D$20,"M11",$H$8:$H$20))+($A$29/Instructions!$C$8) -> 0 | L28: =(SUMIF($D$8:$D$20,"M12",$H$8:$H$20))+($A$29/Instructions!$C$8) -> 5000 | M28: =(SUMIF($D$8:$D$20,"M13",$H$8:$H$20))+($A$29/Instructions!$C$8) -> 10000 | N28: =(SUMIF($D$8:$D$20,"M14",$H$8:$H$20))+($A$29/Instructions!$C$8) -> 0 | O28: =(SUMIF($D$8:$D$20,"M15",$H$8:$H$20))+($A$29/Instructions!$C$8) -> 0 | P28: =SUM(A28:O28) -> 40000 | Q28: Please delete data from this row for un-used milestones
A29: =SUMIF(D8:D20,"All",H8:H20) -> 0
A31: Milestone summary - InEligible Expense by Milestone
A32: Milestone 1 | B32: Milestone 2 | C32: Milestone 3 | D32: Milestone 4 | E32: Milestone 5 | F32: Milestone 6 | G32: Milestone 7 | H32: Milestone 8 | I32: Milestone 9 | J32: Milestone 10 | K32: Milestone 11 | L32: Milestone 12 | M32: Milestone 13 | N32: Milestone 14 | O32: Milestone 15 | P32: Total
A33: =A34/$P$34 -> 0 | B33: 0 | C33: 0 | D33: 0 | E33: 0 | F33: 0 | G33: 0 | H33: 0.2 | I33: 0.2 | J33: 0 | K33: =K34/$P$34 -> 0.2 | L33: 0 | M33: 0 | N33: 0.2 | O33: 0.2 | P33: =SUM(A33:O33) -> 1
A34: =(SUMIF($D$8:$D$20,"M1",$I$8:$I$20))+($A$35/Instructions!$C$8) -> 0 | B34: =(SUMIF($D$8:$D$20,"M2",$I$8:$I$20))+($A$35/Instructions!$C$8) -> 0 | C34: =(SUMIF($D$8:$D$20,"M3",$I$8:$I$20))+($A$35/Instructions!$C$8) -> 0 | D34: =(SUMIF($D$8:$D$20,"M4",$I$8:$I$20))+($A$35/Instructions!$C$8) -> 0 | E34: =(SUMIF($D$8:$D$20,"M5",$I$8:$I$20))+($A$35/Instructions!$C$8) -> 0 | F34: =(SUMIF($D$8:$D$20,"M6",$I$8:$I$20))+($A$35/Instructions!$C$8) -> 0 | G34: =(SUMIF($D$8:$D$20,"M7",$I$8:$I$20))+($A$35/Instructions!$C$8) -> 0 | H34: =(SUMIF($D$8:$D$20,"M8",$I$8:$I$20))+($A$35/Instructions!$C$8) -> 5000 | I34: =(SUMIF($D$8:$D$20,"M9",$I$8:$I$20))+($A$35/Instructions!$C$8) -> 5000 | J34: =(SUMIF($D$8:$D$20,"M10",$I$8:$I$20))+($A$35/Instructions!$C$8) -> 0 | K34: =(SUMIF($D$8:$D$20,"M11",$I$8:$I$20))+($A$35/Instructions!$C$8) -> 5000 | L34: =(SUMIF($D$8:$D$20,"M12",$I$8:$I$20))+($A$35/Instructions!$C$8) -> 0 | M34: =(SUMIF($D$8:$D$20,"M13",$I$8:$I$20))+($A$35/Instructions!$C$8) -> 0 | N34: =(SUMIF($D$8:$D$20,"M14",$I$8:$I$20))+($A$35/Instructions!$C$8) -> 5000 | O34: =(SUMIF($D$8:$D$20,"M15",$I$8:$I$20))+($A$35/Instructions!$C$8) -> 5000 | P34: =SUM(A34:O34) -> 25000 | Q34: Please delete data from this row for un-used milestones
A35: =SUMIF(D8:D20,"All",I8:I20) -> 0

Sheet Materials-Supplies
A1: Project Materials and Supplies Expense Forecast
A2: ERA PROJECT NUMBER | B2: =SOI -> 555555
A3: PROJECT LEAD | B3: =Instructions!C9 -> Winterfell
A4: PROJECT TITLE | B4: =Company_name -> Elsa's Winter Castle
A6: Project Partner (e.g. who is funding it) (if applicable) | B6: Vendor (if applicable) | C6: Description of Item | D6: Location of Vendor/Service Provider/Contractor | E6: Project Expense: Eligible (E) or Ineligible (I) | F6: Indicate which Milestone this expense occurs in | G6: Cost ($) | H6: Eligible M&S Amount | I6: Ineligible M&S Amount | J6: Total Expenses | L6: Eligible Economic spend Inside Alberta | M6: Eligible Economic spend In Canada, but outside Alberta | N6: Eligible Economic spend Outside of Canada
A7: SpringBank Oil | E7: E | F7: M2 | G7: 60000 | H7: =IF(E7="E",G7,0) -> 60000 | I7: =IF(E7="I",G7,0) -> 0 | J7: =G7 -> 60000 | L7: =IF(D7="In Alberta",H7,0) -> 0 | M7: =IF(D7="In Canada, but outside Alberta",H7,0) -> 0 | N7: =IF(D7="Outside of Canada",H7,0) -> 0
A8: castle construction | E8: I | F8: M3 | G8: 60000 | H8: =IF(E8="E",G8,0) -> 0 | I8: =IF(E8="I",G8,0) -> 60000 | J8: 60000 | L8: =IF(D8="In Alberta",H8,0) -> 0 | M8: =IF(D8="In Canada, but outside Alberta",H8,0) -> 0 | N8: =IF(D8="Outside of Canada",H8,0) -> 0 | AA8: Y
A9: Gemstone drilling | E9: E | F9: M4 | G9: 60000 | H9: 60000 | I9: 0 | J9: 60000 | L9: 0 | M9: 0 | N9: 0 | AA9: N
A10: NRCAN | E10: I | F10: M5 | G10: 60000 | H10: 0 | I10: 60000 | J10: 60000 | L10: 0 | M10: 0 | N10: 0
A11: Gemstone drilling | E11: I | F11: M6 | G11: 60000 | H11: 0 | I11: 60000 | J11: 60000 | L11: 0 | M11: 0 | N11: 0
E12: I | F12: M7 | G12: 60000 | H12: 0 | I12: 60000 | J12: 60000 | L12: 0 | M12: 0 | N12: 0
E13: E | F13: M8 | G13: 60000 | H13: 60000 | I13: 0 | J13: 60000 | L13: 0 | M13: 0 | N13: 0
E14: E | F14: M9 | G14: 60000 | H14: 60000 | I14: 0 | J14: 60000 | L14: 0 | M14: 0 | N14: 0
E15: I | F15: All | G15: 60000 | H15: 0 | I15: 60000 | J15: 60000 | L15: 0 | M15: 0 | N15: 0
E16: E | F16: M11 | G16: 60000 | H16: 60000 | I16: 0 | J16: 60000 | L16: 0 | M16: 0 | N16: 0
E17: E | F17: M12 | G17: 60000 | H17: 60000 | I17: 0 | J17: 60000 | L17: 0 | M17: 0 | N17: 0
E18: E | F18: M13 | G18: 60000 | H18: 60000 | I18: 0 | J18: 60000 | L18: 0 | M18: 0 | N18: 0
E19: E | F19: M14 | G19: 60000 | H19: 60000 | I19: 0 | J19: 60000 | L19: 0 | M19: 0 | N19: 0
E20: E | F20: M15 | G20: 60000 | H20: 60000 | I20: 0 | J20: 60000 | L20: 0 | M20: 0 | N20: 0
E21: E | F21: M1 | G21: 60000 | H21: 60000 | I21: 0 | J21: 60000 | L21: 0 | M21: 0 | N21: 0
G22: =SUM(G7:G21) -> 900000 | H22: =SUM(H7:H21) -> 600000 | I22: =SUM(I7:I21) -> 300000 | J22: =SUM(J7:J21) -> 900000 | L22: =SUM(L7:L21) -> 0 | M22: =SUM(M7:M21) -> 0 | N22: =SUM(N7:N21) -> 0
A25: Milestone summary - Eligible Expense by Milestone
A26: Milestone 1 | B26: Milestone 2 | C26: Milestone 3 | D26: Milestone 4 | E26: Milestone 5 | F26: Milestone 6 | G26: Milestone 7 | H26: Milestone 8 | I26: Milestone 9 | J26: Milestone 10 | K26: Milestone 11 | L26: Milestone 12 | M26: Milestone 13 | N26: Milestone 14 | O26: Milestone 15 | P26: Total
A27: =A28/$P$28 -> 0.1 | B27: =B28/$P$28 -> 0.1 | C27: =C28/$P$28 -> 0 | D27: 0.1 | E27: 0 | F27: 0 | G27: 0 | H27: 0.1 | I27: 0.1 | J27: 0 | K27: 0.1 | L27: =L28/$P$28 -> 0.1 | M27: 0.1 | N27: 0.1 | O27: 0.1 | P27: =SUM(A27:O27) -> 1
A28: =(SUMIF(F7:F21,"M1",H7:H21))+($A$29/Instructions!$C$8) -> 60000 | B28: =(SUMIF(F7:F21,"M2",H7:H21))+($A$29/Instructions!$C$8) -> 60000 | C28: =(SUMIF(F7:F21,"M3",H7:H21))+($A$29/Instructions!$C$8) -> 0 | D28: =(SUMIF(F7:F21,"M4",H7:H21))+($A$29/Instructions!$C$8) -> 60000 | E28: =(SUMIF(F7:F21,"M5",H7:H21))+($A$29/Instructions!$C$8) -> 0 | F28: =(SUMIF(F7:F21,"M6",H7:H21))+($A$29/Instructions!$C$8) -> 0 | G28: =(SUMIF(F7:F21,"M7",H7:H21))+($A$29/Instructions!$C$8) -> 0 | H28: =(SUMIF(F7:F21,"M8",H7:H21))+($A$29/Instructions!$C$8) -> 60000 | I28: =(SUMIF(F7:F21,"M9",H7:H21))+($A$29/Instructions!$C$8) -> 60000 | J28: =(SUMIF(F7:F21,"M10",H7:H21))+($A$29/Instructions!$C$8) -> 0 | K28: =(SUMIF(F7:F21,"M11",H7:H21))+($A$29/Instructions!$C$8) -> 60000 | L28: =(SUMIF(F7:F21,"M12",H7:H21))+($A$29/Instructions!$C$8) -> 60000 | M28: =(SUMIF(F7:F21,"M13",H7:H21))+($A$29/Instructions!$C$8) -> 60000 | N28: =(SUMIF(F7:F21,"M14",H7:H21))+($A$29/Instructions!$C$8) -> 60000 | O28: =(SUMIF(F7:F21,"M15",H7:H21))+($A$29/Instructions!$C$8) -> 60000 | P28: =SUM(A28:O28) -> 600000 | Q28: Please delete data from this row for un-used milestones
A29: =SUMIF(F7:F21,"All",H7:H21) -> 0
A31: Milestone summary - inEligible Expense by Milestone
A32: Milestone 1 | B32: Milestone 2 | C32: Milestone 3 | D32: Milestone 4 | E32: Milestone 5 | F32: Milestone 6 | G32: Milestone 7 | H32: Milestone 8 | I32: Milestone 9 | J32: Milestone 10 | K32: Milestone 11 | L32: Milestone 12 | M32: Milestone 13 | N32: Milestone 14 | O32: Milestone 15 | P32: Total
A33: =A34/$P$34 -> 0.01333333333 | B33: 0.01333333333 | C33: 0.2133333333 | D33: 0.01333333333 | E33: 0.2133333333 | F33: 0.2133333333 | G33: 0.2133333333 | H33: 0.01333333333 | I33: 0.01333333333 | J33: 0.01333333333 | K33: =K34/$P$34 -> 0.01333333333 | L33: 0.01333333333 | M33: 0.01333333333 | N33: 0.01333333333 | O33: 0.01333333333 | P33: =SUM(A33:O33) -> 1
A34: =(SUMIF(F7:F21,"M1",I7:I21))+($A$35/Instructions!$C$8) -> 4000 | B34: =(SUMIF(F7:F21,"M2",I7:I21))+($A$35/Instructions!$C$8) -> 4000 | C34: =(SUMIF(F7:F21,"M3",I7:I21))+($A$35/Instructions!$C$8) -> 64000 | D34: =(SUMIF(F7:F21,"M4",I7:I21))+($A$35/Instructions!$C$8) -> 4000 | E34: =(SUMIF(F7:F21,"M5",I7:I21))+($A$35/Instructions!$C$8) -> 64000 | F34: =(SUMIF(F7:F21,"M6",I7:I21))+($A$35/Instructions!$C$8) -> 64000 | G34: =(SUMIF(F7:F21,"M7",I7:I21))+($A$35/Instructions!$C$8) -> 64000 | H34: =(SUMIF(F7:F21,"M8",I7:I21))+($A$35/Instructions!$C$8) -> 4000 | I34: =(SUMIF(F7:F21,"M9",I7:I21))+($A$35/Instructions!$C$8) -> 4000 | J34: =(SUMIF(F7:F21,"M10",I7:I21))+($A$35/Instructions!$C$8) -> 4000 | K34: =(SUMIF(F7:F21,"M11",I7:I21))+($A$35/Instructions!$C$8) -> 4000 | L34: =(SUMIF(F7:F21,"M12",I7:I21))+($A$35/Instructions!$C$8) -> 4000 | M34: =(SUMIF(F7:F21,"M13",I7:I21))+($A$35/Instructions!$C$8) -> 4000 | N34: =(SUMIF(F7:F21,"M14",I7:I21))+($A$35/Instructions!$C$8) -> 4000 | O34: =(SUMIF(F7:F21,"M15",I7:I21))+($A$35/Instructions!$C$8) -> 4000 | P34: =SUM(A34:O34) -> 300000 | Q34: Please delete data from this row for un-used milestones
A35: =SUMIF(F7:F21,"All",I7:I21) -> 60000

Sheet Consult-SubC
A1: Project Consulting Expense Forecast
A2: ERA PROJECT NUMBER | B2: =SOI -> 555555
A3: PROJECT LEAD | B3: =Instructions!C9 -> Winterfell
A4: PROJECT TITLE | B4: =Company_name -> Elsa's Winter Castle
A6: Project Partner (e.g. entity funding the consulting work) (if applicable) | B6: Vendor (if applicable) | C6: Expense Type Consulting (CO) or Subcontract (SC) | D6: Description of Work | E6: Location of Sub-Contractor/Consultant | F6: Indicate which Milestone this expense occurs in | G6: Project Expense: Eligible (E) or Ineligible (I) | H6: Total Cost (CAD) | I6: Eligible Sub-Contracting or Consulting Amount | J6: Ineligible Sub-Contracting or Consulting Amount | K6: Total Expenses | M6: Eligible Economic spend Inside Alberta | N6: Eligible Economic spend In Canada, but outside Alberta | O6: Eligible Economic spend Outside of Canada
A7: Winterfell | F7: All | G7: I | H7: 10000 | I7: =IF(G7="E",H7,0) -> 0 | J7: =IF(G7="I",H7,0) -> 10000 | K7: =SUM(I7:J7) -> 10000 | M7: =IF(E7="In Alberta",I7,0) -> 0 | N7: =IF(E7="In Canada, but outside Alberta",I7,0) -> 0 | O7: =IF(E7="Outside of Canada",I7,0) -> 0 | AB7: Y
F8: M1 | G8: I | H8: 10000 | I8: =IF(G8="E",H8,0) -> 0 | J8: =IF(G8="I",H8,0) -> 10000 | K8: =SUM(I8:J8) -> 10000 | M8: =IF(E8="In Alberta",I8,0) -> 0 | N8: =IF(E8="In Canada, but outside Alberta",I8,0) -> 0 | O8: =IF(E8="Outside of Canada",I8,0) -> 0 | AB8: N
F9: M2 | G9: E | H9: 10000 | I9: 10000 | J9: 0 | K9: =SUM(I9:J9) -> 10000 | M9: 0 | N9: 0 | O9: 0
F10: M3 | G10: I | H10: 10000 | I10: 0 | J10: 10000 | K10: 10000 | M10: 0 | N10: 0 | O10: 0
F11: M4 | G11: I | H11: 10000 | I11: 0 | J11: 10000 | K11: 10000 | M11: 0 | N11: 0 | O11: 0
F12: M5 | G12: I | H12: 10000 | I12: 0 | J12: 10000 | K12: 10000 | M12: 0 | N12: 0 | O12: 0
F13: M6 | G13: I | H13: 10000 | I13: 0 | J13: 10000 | K13: 10000 | M13: 0 | N13: 0 | O13: 0
F14: M7 | G14: I | H14: 10000 | I14: 0 | J14: 10000 | K14: 10000 | M14: 0 | N14: 0 | O14: 0
F15: All | G15: I | H15: 10000 | I15: 0 | J15: 10000 | K15: 10000 | M15: 0 | N15: 0 | O15: 0
F16: M12 | G16: E | H16: 10000 | I16: 10000 | J16: 0 | K16: 10000 | M16: 0 | N16: 0 | O16: 0
F17: M15 | G17: E | H17: 10000 | I17: 10000 | J17: 0 | K17: 10000 | M17: 0 | N17: 0 | O17: 0
F18: All | G18: E | H18: 10000 | I18: 10000 | J18: 0 | K18: 10000 | M18: 0 | N18: 0 | O18: 0
F19: All | G19: E | H19: 10000 | I19: 10000 | J19: 0 | K19: 10000 | M19: 0 | N19: 0 | O19: 0
F20: All | G20: E | H20: 10000 | I20: 10000 | J20: 0 | K20: 10000 | M20: 0 | N20: 0 | O20: 0
F21: All | G21: E | H21: 10000 | I21: 10000 | J21: 0 | K21: 10000 | M21: 0 | N21: 0 | O21: 0
H22: =SUM(H7:H21) -> 150000 | I22: =SUM(I7:I21) -> 70000 | J22: =SUM(J7:J21) -> 80000 | K22: =SUM(K7:K21) -> 150000 | M22: =SUM(M7:M21) -> 0 | N22: =SUM(N7:N21) -> 0 | O22: =SUM(O7:O21) -> 0
A26: Milestone summary - Eligible Expense by Milestone
A27: Milestone 1 | B27: Milestone 2 | C27: Milestone 3 | D27: Milestone 4 | E27: Milestone 5 | F27: Milestone 6 | G27: Milestone 7 | H27: Milestone 8 | I27: Milestone 9 | J27: Milestone 10 | K27: Milestone 11 | L27: Milestone 12 | M27: Milestone 13 | N27: Milestone 14 | O27: Milestone 15 | P27: Total
A28: =A29/$P$29 -> 0.0380952381 | B28: 0.180952381 | C28: 0.0380952381 | D28: 0.0380952381 | E28: 0.0380952381 | F28: 0.0380952381 | G28: 0.0380952381 | H28: 0.0380952381 | I28: 0.0380952381 | J28: 0.0380952381 | K28: =K29/$P$29 -> 0.0380952381 | L28: 0.180952381 | M28: 0.0380952381 | N28: 0.0380952381 | O28: 0.180952381 | P28: =SUM(A28:O28) -> 1
A29: =(SUMIF(F7:F21,"M1",I7:I21))+($A$30/Instructions!$C$8) -> 2666.666667 | B29: =(SUMIF(F7:F21,"M2",I7:I21))+($A$30/Instructions!$C$8) -> 12666.66667 | C29: =(SUMIF(F7:F21,"M3",I7:I21))+($A$30/Instructions!$C$8) -> 2666.666667 | D29: =(SUMIF(F7:F21,"M4",I7:I21))+($A$30/Instructions!$C$8) -> 2666.666667 | E29: =(SUMIF(F7:F21,"M5",I7:I21))+($A$30/Instructions!$C$8) -> 2666.666667 | F29: =(SUMIF(F7:F21,"M6",I7:I21))+($A$30/Instructions!$C$8) -> 2666.666667 | G29: =(SUMIF(F7:F21,"M7",I7:I21))+($A$30/Instructions!$C$8) -> 2666.666667 | H29: =(SUMIF(F7:F21,"M8",I7:I21))+($A$30/Instructions!$C$8) -> 2666.666667 | I29: =(SUMIF(F7:F21,"M9",I7:I21))+($A$30/Instructions!$C$8) -> 2666.666667 | J29: =(SUMIF(F7:F21,"M10",I7:I21))+($A$30/Instructions!$C$8) -> 2666.666667 | K29: =(SUMIF(F7:F21,"M11",I7:I21))+($A$30/Instructions!$C$8) -> 2666.666667 | L29: =(SUMIF(F7:F21,"M12",I7:I21))+($A$30/Instructions!$C$8) -> 12666.66667 | M29: =(SUMIF(F7:F21,"M13",I7:I21))+($A$30/Instructions!$C$8) -> 2666.666667 | N29: =(SUMIF(F7:F21,"M14",I7:I21))+($A$30/Instructions!$C$8) -> 2666.666667 | O29: =(SUMIF(F7:F21,"M15",I7:I21))+($A$30/Instructions!$C$8) -> 12666.66667 | P29: =SUM(A29:O29) -> 70000 | Q29: Please delete data from this row for un-used milestones
A30: =SUMIF(F7:F21,"All",I7:I21) -> 40000
A32: Milestone summary - InEligible Expense by Milestone
A33: Milestone 1 | B33: Milestone 2 | C33: Milestone 3 | D33: Milestone 4 | E33: Milestone 5 | F33: Milestone 6 | G33: Milestone 7 | H33: Milestone 8 | I33: Milestone 9 | J33: Milestone 10 | K33: Milestone 11 | L33: Milestone 12 | M33: Milestone 13 | N33: Milestone 14 | O33: Milestone 15 | P33: Total
A34: =A35/$P$35 -> 0.1416666667 | B34: 0.01666666667 | C34: 0.1416666667 | D34: 0.1416666667 | E34: 0.1416666667 | F34: 0.1416666667 | G34: 0.1416666667 | H34: 0.01666666667 | I34: 0.01666666667 | J34: 0.01666666667 | K34: =K35/$P$35 -> 0.01666666667 | L34: 0.01666666667 | M34: 0.01666666667 | N34: 0.01666666667 | O34: 0.01666666667 | P34: =SUM(A34:O34) -> 1
A35: =(SUMIF(F7:F21,"M1",J7:J21))+($A$36/Instructions!$C$8) -> 11333.33333 | B35: =(SUMIF(F7:F21,"M2",J7:J21))+($A$36/Instructions!$C$8) -> 1333.333333 | C35: =(SUMIF(F7:F21,"M3",J7:J21))+($A$36/Instructions!$C$8) -> 11333.33333 | D35: =(SUMIF(F7:F21,"M4",J7:J21))+($A$36/Instructions!$C$8) -> 11333.33333 | E35: =(SUMIF(F7:F21,"M5",J7:J21))+($A$36/Instructions!$C$8) -> 11333.33333 | F35: =(SUMIF(F7:F21,"M6",J7:J21))+($A$36/Instructions!$C$8) -> 11333.33333 | G35: =(SUMIF(F7:F21,"M7",J7:J21))+($A$36/Instructions!$C$8) -> 11333.33333 | H35: =(SUMIF(F7:F21,"M8",J7:J21))+($A$36/Instructions!$C$8) -> 1333.333333 | I35: =(SUMIF(F7:F21,"M9",J7:J21))+($A$36/Instructions!$C$8) -> 1333.333333 | J35: =(SUMIF(F7:F21,"M10",J7:J21))+($A$36/Instructions!$C$8) -> 1333.333333 | K35: =(SUMIF(F7:F21,"M11",J7:J21))+($A$36/Instructions!$C$8) -> 1333.333333 | L35: =(SUMIF(F7:F21,"M12",J7:J21))+($A$36/Instructions!$C$8) -> 1333.333333 | M35: =(SUMIF(F7:F21,"M13",J7:J21))+($A$36/Instructions!$C$8) -> 1333.333333 | N35: =(SUMIF(F7:F21,"M14",J7:J21))+($A$36/Instructions!$C$8) -> 1333.333333 | O35: =(SUMIF(F7:F21,"M15",J7:J21))+($A$36/Instructions!$C$8) -> 1333.333333 | P35: =SUM(A35:O35) -> 80000 | Q35: Please delete data from this row for un-used milestones
A36: =SUMIF(F7:F21,"All",J7:J21) -> 20000

Sheet Travel
A1: Project Travel Expense Forecast
A2: ERA PROJECT NUMBER | B2: =SOI -> 555555
A3: PROJECT LEAD | B3: =Instructions!C9 -> Winterfell
A4: PROJECT TITLE | B4: =Company_name -> Elsa's Winter Castle | W4: N
A6: Applicant or Partner (e.g. entity funding the travel) (if applicable) | B6: Employee Name | C6: Description of Trip Expense | D6: Location of Vendor/Service Provider | E6: Project Expense: Eligible (E) or Ineligible (I) | F6: Indicate which Milestone this expense occurs in | G6: Cost in CAD | H6: Eligible Travel Expenses | I6: Ineligible Travel Expenses | J6: Total Travel Expenses | M6: Eligible Economic spend Inside Alberta | N6: Eligible Economic spend In Canada, but outside Alberta | O6: Eligible Economic spend Outside of Canada
E7: I | F7: M2 | G7: 90000 | H7: =IF(E7="E",G7,0) -> 0 | I7: =IF(E7="I",G7,0) -> 90000 | J7: =G7 -> 90000 | M7: =IF(D7="In Alberta",H7,0) -> 0 | N7: =IF(D7="In Canada, but outside Alberta",H7,0) -> 0 | O7: =IF(D7="Outside of Canada",H7,0) -> 0
E8: E | F8: M3 | G8: 90000 | H8: =IF(E8="E",G8,0) -> 90000 | I8: =IF(E8="I",G8,0) -> 0 | J8: =G8 -> 90000 | M8: =IF(D8="In Alberta",H8,0) -> 0 | N8: =IF(D8="In Canada, but outside Alberta",H8,0) -> 0 | O8: =IF(D8="Outside of Canada",H8,0) -> 0
E9: I | F9: All | G9: 90000 | H9: 0 | I9: 90000 | J9: 90000 | M9: 0 | N9: 0 | O9: 0
E10: E | F10: M5 | G10: 90000 | H10: 90000 | I10: 0 | J10: 90000 | M10: 0 | N10: 0 | O10: 0
E11: E | F11: M6 | G11: 90000 | H11: 90000 | I11: 0 | J11: 90000 | M11: 0 | N11: 0 | O11: 0
E12: I | F12: M7 | G12: 90000 | H12: 0 | I12: 90000 | J12: 90000 | M12: 0 | N12: 0 | O12: 0
E13: E | F13: M8 | G13: 90000 | H13: 90000 | I13: 0 | J13: 90000 | M13: 0 | N13: 0 | O13: 0
E14: E | F14: M9 | G14: 90000 | H14: 90000 | I14: 0 | J14: 90000 | M14: 0 | N14: 0 | O14: 0
E15: E | F15: M10 | G15: 90000 | H15: 90000 | I15: 0 | J15: 90000 | M15: 0 | N15: 0 | O15: 0
E16: E | F16: M11 | G16: 90000 | H16: 90000 | I16: 0 | J16: 90000 | M16: 0 | N16: 0 | O16: 0
E17: I | F17: M12 | G17: 90000 | H17: 0 | I17: 90000 | J17: 90000 | M17: 0 | N17: 0 | O17: 0
E18: E | F18: M13 | G18: 90000 | H18: 90000 | I18: 0 | J18: 90000 | M18: 0 | N18: 0 | O18: 0
E19: E | F19: M14 | G19: 90000 | H19: 90000 | I19: 0 | J19: 90000 | M19: 0 | N19: 0 | O19: 0
E20: E | F20: M15 | G20: 90000 | H20: 90000 | I20: 0 | J20: 90000 | M20: 0 | N20: 0 | O20: 0
G21: =SUM(G7:G20) -> 1260000 | H21: =SUM(H7:H20) -> 900000 | I21: =SUM(I7:I20) -> 360000 | J21: =SUM(J7:J20) -> 1260000 | M21: =SUM(M7:M20) -> 0 | N21: =SUM(N7:N20) -> 0 | O21: =SUM(O7:O20) -> 0
A25: Milestone summary - Eligible Expense by Milestone
A26: Milestone 1 | B26: Milestone 2 | C26: Milestone 3 | D26: Milestone 4 | E26: Milestone 5 | F26: Milestone 6 | G26: Milestone 7 | H26: Milestone 8 | I26: Milestone 9 | J26: Milestone 10 | K26: Milestone 11 | L26: Milestone 12 | M26: Milestone 13 | N26: Milestone 14 | O26: Milestone 15 | P26: Total
A27: =A28/$P$28 -> 0 | B27: 0 | C27: 0.1 | D27: 0 | E27: 0.1 | F27: 0.1 | G27: 0 | H27: 0.1 | I27: 0.1 | J27: 0.1 | K27: =K28/$P$28 -> 0.1 | L27: 0 | M27: 0.1 | N27: 0.1 | O27: 0.1 | P27: =SUM(A27:O27) -> 1
A28: =(SUMIF(F7:F20,"M1",H7:H20))+(A29/Instructions!$C$8) -> 0 | B28: =(SUMIF($F$7:$F$20,"M2",$H$7:$H$20))+($A$29/Instructions!$C$8) -> 0 | C28: =(SUMIF($F$7:$F$20,"M3",$H$7:$H$20))+($A$29/Instructions!$C$8) -> 90000 | D28: =(SUMIF($F$7:$F$20,"M4",$H$7:$H$20))+($A$29/Instructions!$C$8) -> 0 | E28: =(SUMIF($F$7:$F$20,"M5",$H$7:$H$20))+($A$29/Instructions!$C$8) -> 90000 | F28: =(SUMIF($F$7:$F$20,"M6",$H$7:$H$20))+($A$29/Instructions!$C$8) -> 90000 | G28: =(SUMIF($F$7:$F$20,"M7",$H$7:$H$20))+($A$29/Instructions!$C$8) -> 0 | H28: =(SUMIF($F$7:$F$20,"M8",$H$7:$H$20))+($A$29/Instructions!$C$8) -> 90000 | I28: =(SUMIF($F$7:$F$20,"M9",$H$7:$H$20))+($A$29/Instructions!$C$8) -> 90000 | J28: =(SUMIF($F$7:$F$20,"M10",$H$7:$H$20))+($A$29/Instructions!$C$8) -> 90000 | K28: =(SUMIF($F$7:$F$20,"M11",$H$7:$H$20))+($A$29/Instructions!$C$8) -> 90000 | L28: =(SUMIF($F$7:$F$20,"M12",$H$7:$H$20))+($A$29/Instructions!$C$8) -> 0 | M28: =(SUMIF($F$7:$F$20,"M13",$H$7:$H$20))+($A$29/Instructions!$C$8) -> 90000 | N28: =(SUMIF($F$7:$F$20,"M14",$H$7:$H$20))+($A$29/Instructions!$C$8) -> 90000 | O28: =(SUMIF($F$7:$F$20,"M15",$H$7:$H$20))+($A$29/Instructions!$C$8) -> 90000 | P28: =SUM(A28:O28) -> 900000 | Q28: Please delete data from this row for un-used milestones
A29: =SUMIF($F$7:$F$20,"All",$H$7:$H$20) -> 0
A31: Milestone summary - InEligible Expense by Milestone
A32: Milestone 1 | B32: Milestone 2 | C32: Milestone 3 | D32: Milestone 4 | E32: Milestone 5 | F32: Milestone 6 | G32: Milestone 7 | H32: Milestone 8 | I32: Milestone 9 | J32: Milestone 10 | K32: Milestone 11 | L32: Milestone 12 | M32: Milestone 13 | N32: Milestone 14 | O32: Milestone 15 | P32: Total
A33: =A34/$P$34 -> 0.01666666667 | B33: 0.2666666667 | C33: 0.01666666667 | D33: 0.01666666667 | E33: 0.01666666667 | F33: 0.01666666667 | G33: 0.2666666667 | H33: 0.01666666667 | I33: 0.01666666667 | J33: 0.01666666667 | K33: =K34/$P$34 -> 0.01666666667 | L33: 0.2666666667 | M33: 0.01666666667 | N33: 0.01666666667 | O33: 0.01666666667 | P33: =SUM(A33:O33) -> 1
A34: =(SUMIF(F7:F20,"M1",I7:I20))+($A$35/Instructions!$C$8) -> 6000 | B34: =(SUMIF(F7:F20,"M2",I7:I20))+($A$35/Instructions!$C$8) -> 96000 | C34: =(SUMIF(F7:F20,"M3",I7:I20))+($A$35/Instructions!$C$8) -> 6000 | D34: =(SUMIF(F7:F20,"M4",I7:I20))+($A$35/Instructions!$C$8) -> 6000 | E34: =(SUMIF(F7:F20,"M5",I7:I20))+($A$35/Instructions!$C$8) -> 6000 | F34: =(SUMIF(F7:F20,"M6",I7:I20))+($A$35/Instructions!$C$8) -> 6000 | G34: =(SUMIF(F7:F20,"M7",I7:I20))+($A$35/Instructions!$C$8) -> 96000 | H34: =(SUMIF(F7:F20,"M8",I7:I20))+($A$35/Instructions!$C$8) -> 6000 | I34: =(SUMIF(F7:F20,"M9",I7:I20))+($A$35/Instructions!$C$8) -> 6000 | J34: =(SUMIF(F7:F20,"M10",I7:I20))+($A$35/Instructions!$C$8) -> 6000 | K34: =(SUMIF(F7:F20,"M11",I7:I20))+($A$35/Instructions!$C$8) -> 6000 | L34: =(SUMIF(F7:F20,"M12",I7:I20))+($A$35/Instructions!$C$8) -> 96000 | M34: =(SUMIF(F7:F20,"M13",I7:I20))+($A$35/Instructions!$C$8) -> 6000 | N34: =(SUMIF(F7:F20,"M14",I7:I20))+($A$35/Instructions!$C$8) -> 6000 | O34: =(SUMIF(F7:F20,"M15",I7:I20))+($A$35/Instructions!$C$8) -> 6000 | P34: =SUM(A34:O34) -> 360000 | Q34: Please delete data from this row for un-used milestones
A35: =SUMIF($F$7:$F$20,"All",$I$7:$I$20) -> 90000

Sheet Overhead
A1: Project Overhead Expense Forecast
A2: ERA PROJECT NUMBER | B2: =SOI -> 555555
A3: PROJECT LEAD | B3: =Instructions!C9 -> Winterfell
A4: PROJECT TITLE | B4: =Company_name -> Elsa's Winter Castle
A6: Project Partner (e.g. the entity funding overhead) (if applicable) | B6: Description of Overhead Cost | C6: Project Expense: Eligible (E) or Ineligible (I) | D6: Location of Expense | E6: Indicate which Milestone this expense occurs in | F6: Cost ($) | G6: Eligible Overhead Amount | H6: Ineligible Overhead Amount | I6: Total Expenses | K6: Eligible Economic spend Inside Alberta | L6: Eligible Economic spend In Canada, but outside Alberta | M6: Eligible Economic spend Outside of Canada
C7: I | E7: All | F7: 500000 | G7: =IF(C7="E",F7,0) -> 0 | H7: =IF(C7="I",F7,0) -> 500000 | I7: =F7 -> 500000 | K7: =IF(D7="In Alberta",G7,0) -> 0 | L7: =IF(D7="In Canada, but outside Alberta",G7,0) -> 0 | M7: =IF(D7="Outside of Canada",G7,0) -> 0
C8: E | E8: All | F8: 500000 | G8: =IF(C8="E",F8,0) -> 500000 | H8: =IF(C8="I",F8,0) -> 0 | I8: =F8 -> 500000 | K8: =IF(D8="In Alberta",G8,0) -> 0 | L8: =IF(D8="In Canada, but outside Alberta",G8,0) -> 0 | M8: =IF(D8="Outside of Canada",G8,0) -> 0
C9: E | E9: M4 | F9: 500000 | G9: 500000 | H9: 0 | I9: 500000 | K9: 0 | L9: 0 | M9: 0
C10: I | E10: All | F10: 500000 | G10: 0 | H10: 500000 | I10: 500000 | K10: 0 | L10: 0 | M10: 0 | Z10: Y
C11: E | E11: All | F11: 500000 | G11: 500000 | H11: 0 | I11: 500000 | K11: 0 | L11: 0 | M11: 0 | Z11: N
C12: E | E12: M7 | F12: 500000 | G12: 500000 | H12: 0 | I12: 500000 | K12: 0 | L12: 0 | M12: 0
C13: E | E13: All | F13: 500000 | G13: 500000 | H13: 0 | I13: 500000 | K13: 0 | L13: 0 | M13: 0
C14: E | E14: All | F14: 500000 | G14: 500000 | H14: 0 | I14: 500000 | K14: 0 | L14: 0 | M14: 0
C15: E | E15: All | F15: 500000 | G15: 500000 | H15: 0 | I15: 500000 | K15: 0 | L15: 0 | M15: 0
C16: E | E16: All | F16: 500000 | G16: 500000 | H16: 0 | I16: 500000 | K16: 0 | L16: 0 | M16: 0
C17: E | E17: All | F17: 500000 | G17: 500000 | H17: 0 | I17: 500000 | K17: 0 | L17: 0 | M17: 0
C18: E | E18: All | F18: 500000 | G18: 500000 | H18: 0 | I18: 500000 | K18: 0 | L18: 0 | M18: 0
C19: E | E19: All | F19: 500000 | G19: 500000 | H19: 0 | I19: 500000 | K19: 0 | L19: 0 | M19: 0
C20: E | E20: All | F20: 500000 | G20: 500000 | H20: 0 | I20: 500000 | K20: 0 | L20: 0 | M20: 0
C21: E | E21: All | F21: 500000 | G21: 500000 | H21: 0 | I21: 500000 | K21: 0 | L21: 0 | M21: 0
F22: =SUM(F7:F21) -> 7500000 | G22: =SUM(G7:G21) -> 6500000 | H22: =SUM(H7:H21) -> 1000000 | I22: =SUM(I7:I21) -> 7500000 | K22: =SUM(K7:K21) -> 0 | L22: =SUM(L7:L21) -> 0 | M22: =SUM(M7:M21) -> 0
A25: Milestone summary - Eligible Expense by Milestone
A26: Milestone 1 | B26: Milestone 2 | C26: Milestone 3 | D26: Milestone 4 | E26: Milestone 5 | F26: Milestone 6 | G26: Milestone 7 | H26: Milestone 8 | I26: Milestone 9 | J26: Milestone 10 | K26: Milestone 11 | L26: Milestone 12 | M26: Milestone 13 | N26: Milestone 14 | O26: Milestone 15 | P26: Total
A27: =A28/$P$28 -> 0.05641025641 | B27: 0.05641025641 | C27: 0.05641025641 | D27: 0.1333333333 | E27: 0.05641025641 | F27: 0.05641025641 | G27: 0.1333333333 | H27: 0.05641025641 | I27: 0.05641025641 | J27: 0.05641025641 | K27: =K28/$P$28 -> 0.05641025641 | L27: 0.05641025641 | M27: 0.05641025641 | N27: 0.05641025641 | O27: 0.05641025641 | P27: =SUM(A27:O27) -> 1
A28: =(SUMIF(E7:E21,"M1",G7:G21))+($A$29/Instructions!$C$8) -> 366666.6667 | B28: =(SUMIF(E7:E21,"M2",G7:G21))+($A$29/Instructions!$C$8) -> 366666.6667 | C28: =(SUMIF(E7:E21,"M3",G7:G21))+($A$29/Instructions!$C$8) -> 366666.6667 | D28: =(SUMIF(E7:E21,"M4",G7:G21))+($A$29/Instructions!$C$8) -> 866666.6667 | E28: =(SUMIF(E7:E21,"M5",G7:G21))+($A$29/Instructions!$C$8) -> 366666.6667 | F28: =(SUMIF(E7:E21,"M6",G7:G21))+($A$29/Instructions!$C$8) -> 366666.6667 | G28: =(SUMIF(E7:E21,"M7",G7:G21))+($A$29/Instructions!$C$8) -> 866666.6667 | H28: =(SUMIF(E7:E21,"M8",G7:G21))+($A$29/Instructions!$C$8) -> 366666.6667 | I28: =(SUMIF(E7:E21,"M9",G7:G21))+($A$29/Instructions!$C$8) -> 366666.6667 | J28: =(SUMIF(E7:E21,"M10",G7:G21))+($A$29/Instructions!$C$8) -> 366666.6667 | K28: =(SUMIF(E7:E21,"M11",G7:G21))+($A$29/Instructions!$C$8) -> 366666.6667 | L28: =(SUMIF(E7:E21,"M12",G7:G21))+($A$29/Instructions!$C$8) -> 366666.6667 | M28: =(SUMIF(E7:E21,"M13",G7:G21))+($A$29/Instructions!$C$8) -> 366666.6667 | N28: =(SUMIF(E7:E21,"M14",G7:G21))+($A$29/Instructions!$C$8) -> 366666.6667 | O28: =(SUMIF(E7:E21,"M15",G7:G21))+($A$29/Instructions!$C$8) -> 366666.6667 | P28: =SUM(A28:O28) -> 6500000 | Q28: Please delete data from this row for un-used milestones
A29: =SUMIF($E$7:$E$21,"All",$G$7:$G$21) -> 5500000
A31: Milestone summary - InEligible Expense by Milestone
A32: Milestone 1 | B32: Milestone 2 | C32: Milestone 3 | D32: Milestone 4 | E32: Milestone 5 | F32: Milestone 6 | G32: Milestone 7 | H32: Milestone 8 | I32: Milestone 9 | J32: Milestone 10 | K32: Milestone 11 | L32: Milestone 12 | M32: Milestone 13 | N32: Milestone 14 | O32: Milestone 15 | P32: Total
A33: =A34/$P$34 -> 0.06666666667 | B33: 0.06666666667 | C33: 0.06666666667 | D33: 0.06666666667 | E33: 0.06666666667 | F33: 0.06666666667 | G33: 0.06666666667 | H33: 0.06666666667 | I33: 0.06666666667 | J33: 0.06666666667 | K33: =K34/$P$34 -> 0.06666666667 | L33: 0.06666666667 | M33: 0.06666666667 | N33: 0.06666666667 | O33: 0.06666666667 | P33: =SUM(A33:O33) -> 1
A34: =(SUMIF(E7:E21,"M1",H7:H21))+($A$35/Instructions!$C$8) -> 66666.66667 | B34: =(SUMIF(E7:E21,"M2",H7:H21))+($A$35/Instructions!$C$8) -> 66666.66667 | C34: =(SUMIF(E7:E21,"M3",H7:H21))+($A$35/Instructions!$C$8) -> 66666.66667 | D34: =(SUMIF(E7:E21,"M4",H7:H21))+($A$35/Instructions!$C$8) -> 66666.66667 | E34: =(SUMIF(E7:E21,"M5",H7:H21))+($A$35/Instructions!$C$8) -> 66666.66667 | F34: =(SUMIF(E7:E21,"M6",H7:H21))+($A$35/Instructions!$C$8) -> 66666.66667 | G34: =(SUMIF(E7:E21,"M7",H7:H21))+($A$35/Instructions!$C$8) -> 66666.66667 | H34: =(SUMIF(E7:E21,"M8",H7:H21))+($A$35/Instructions!$C$8) -> 66666.66667 | I34: =(SUMIF(E7:E21,"M9",H7:H21))+($A$35/Instructions!$C$8) -> 66666.66667 | J34: =(SUMIF(E7:E21,"M10",H7:H21))+($A$35/Instructions!$C$8) -> 66666.66667 | K34: =(SUMIF(E7:E21,"M11",H7:H21))+($A$35/Instructions!$C$8) -> 66666.66667 | L34: =(SUMIF(E7:E21,"M12",H7:H21))+($A$35/Instructions!$C$8) -> 66666.66667 | M34: =(SUMIF(E7:E21,"M13",H7:H21))+($A$35/Instructions!$C$8) -> 66666.66667 | N34: =(SUMIF(E7:E21,"M14",H7:H21))+($A$35/Instructions!$C$8) -> 66666.66667 | O34: =(SUMIF(E7:E21,"M15",H7:H21))+($A$35/Instructions!$C$8) -> 66666.66667 | P34: =SUM(A34:O34) -> 1000000 | Q34: Please delete data from this row for un-used milestones
A35: =SUMIF($E$7:$E$21,"All",$H$7:$H$21) -> 1000000

Sheet Milestone Summary
B1: Project Funding by Milestone
B2: ERA PROJECT NUMBER | C2: =SOI -> 555555
B3: PROJECT LEAD | C3: =Instructions!C9 -> Winterfell
B4: PROJECT TITLE | C4: =Company_name -> Elsa's Winter Castle
B6: Copy this into schedule A
B7: Milestone | C7: A | D7: B | E7: C | F7: A+C | G7: A+B+C | H7: % ERA contribution to eligible
C8: Proponent Contribution ($) | E8: ERA Contribution ($) | F8: Total Eligible Project Costs ($) | G8: Total Project Cost ($)
C9: Eligible | D9: Ineligible | I9: Note: ERA's contribution for each milestone's total eligible costs should be evenly distributed and no more than 50%.
B10: M1 | C10: 379333 | D10: =SUMMARY!L36 -> 101333.3333 | E10: =F10-C10 -> 90000.33333 | F10: =SUMMARY!L26 -> 469333.3333 | G10: =SUMMARY!L26+SUMMARY!L36 -> 570666.6667 | H10: =E10/F10 -> 0.1917620739
B11: M2 | C11: 390338 | D11: =SUMMARY!M36 -> 181333.3333 | E11: 93995.33333 | F11: =SUMMARY!M26 -> 484333.3333 | G11: =SUMMARY!M26+SUMMARY!M36 -> 665666.6667 | H11: =E11/F11 -> 0.194071576
B12: M3 | C12: 570333 | D12: =SUMMARY!N36 -> 561333.3333 | E12: 134000.3333 | F12: =SUMMARY!N26 -> 704333.3333 | G12: =SUMMARY!N26+SUMMARY!N36 -> 1265666.667 | H12: 0.1902513015
B13: M4 | C13: 785333 | D13: =SUMMARY!O36 -> 301333.3333 | E13: 189000.3333 | F13: =SUMMARY!O26 -> 974333.3333 | G13: =SUMMARY!O26+SUMMARY!O36 -> 1275666.667 | H13: 0.193979131
B14: M5 | C14: 918333 | D14: =SUMMARY!P36 -> 421333.3333 | E14: 221000.3333 | F14: =SUMMARY!P26 -> 1139333.333 | G14: =SUMMARY!P26+SUMMARY!P36 -> 1560666.667 | H14: 0.1939733762
B15: M6 | C15: 403333 | D15: =SUMMARY!Q36 -> 161333.3333 | E15: 96000.33333 | F15: =SUMMARY!Q26 -> 499333.3333 | G15: =SUMMARY!Q26+SUMMARY!Q36 -> 660666.6667 | H15: 0.1922570093
B16: M7 | C16: 737333 | D16: =SUMMARY!R36 -> 251333.3333 | E16: 177000.3333 | F16: =SUMMARY!R26 -> 914333.3333 | G16: =SUMMARY!R26+SUMMARY!R36 -> 1165666.667 | H16: 0.1935840321
B17: M8 | C17: 451333 | D17: =SUMMARY!S36 -> 96333.33333 | E17: 108000.3333 | F17: =SUMMARY!S26 -> 559333.3333 | G17: =SUMMARY!S26+SUMMARY!S36 -> 655666.6667 | H17: 0.1930876043
B18: M9 | C18: 451333 | D18: =SUMMARY!T36 -> 96333.33333 | E18: 108000.3333 | F18: =SUMMARY!T26 -> 559333.3333 | G18: =SUMMARY!T26+SUMMARY!T36 -> 655666.6667 | H18: 0.1930876043
B19: M10 | C19: 407333 | D19: =SUMMARY!U36 -> 91333.33333 | E19: 97000.33333 | F19: =SUMMARY!U26 -> 504333.3333 | G19: =SUMMARY!U26+SUMMARY!U36 -> 595666.6667 | H19: 0.192333774
B20: M11 | C20: 612333 | D20: =SUMMARY!V36 -> 296333.3333 | E20: 147000.3333 | F20: =SUMMARY!V26 -> 759333.3333 | G20: =SUMMARY!V26+SUMMARY!V36 -> 1055666.667 | H20: 0.1935913082
B21: M12 | C21: 712333 | D21: =SUMMARY!W36 -> 181333.3333 | E21: 172000.3333 | F21: =SUMMARY!W26 -> 884333.3333 | G21: =SUMMARY!W26+SUMMARY!W36 -> 1065666.667 | H21: 0.194497173
B22: M13 | C22: 620333 | D22: =SUMMARY!X36 -> 291333.3333 | E22: 149000.3333 | F22: =SUMMARY!X26 -> 769333.3333 | G22: =SUMMARY!X26+SUMMARY!X36 -> 1060666.667 | H22: 0.1936746101
B23: M14 | C23: 451333 | D23: =SUMMARY!Y36 -> 96333.33333 | E23: 108000.3333 | F23: =SUMMARY!Y26 -> 559333.3333 | G23: =SUMMARY!Y26+SUMMARY!Y36 -> 655666.6667 | H23: 0.1930876043
B24: M15 | C24: 459333 | D24: =SUMMARY!Z36 -> 96333.33333 | E24: 110000.3333 | F24: =SUMMARY!Z26 -> 569333.3333 | G24: =SUMMARY!Z26+SUMMARY!Z36 -> 665666.6667 | H24: 0.1932090164
B25: TOTAL | C25: =SUM(C10:C24) -> 8350000 | D25: =SUM(D10:D24) -> 3225000 | E25: =SUM(E10:E24) -> 2000000 | F25: =SUM(F10:F24) -> 10350000 | G25: =SUM(G10:G24) -> 13575000 | H25: 0.193236715 | I25: =C25+E25-F25 -> 0 | J25: check - must be zero
D26: ERA max funding | E26: ='Project Funding '!G7 -> 2000000
D27: check - must be zero | E27: =E25-E26 -> 0
B30: Copy this into schedule A

Sheet SUMMARY
B1: Project Summary | F1: NOTE TO PREPARER: Do not modify this tab as these amounts are calculated automatically. | N1: Version 1.0 March 2021
B2: ERA PROJECT NUMBER | D2: =SOI -> 555555
B3: Project Lead | D3: =Instructions!C9 -> Winterfell
B4: Project Title | D4: =Company_name -> Elsa's Winter Castle
B6: Total Project Budget (Ineligible + Eligible) | C6: =E26 -> 13575000 | E6: Total Eligible Project Expenses | F6: =C26 -> 10350000
B7: Total Project Funding | C7: =F15 -> 13475000 | E7: Total InEligible Project Expenses | F7: =D26 -> 3225000
B8: Difference | C8: =C7-C6 -> -100000 | E8: Total Project Budget | F8: =F7+F6 -> 13575000
B10: Summary of Funding Sources | K10: Summary of Job Creation
C11: Inside Alberta | D11: In Canada, but outside Alberta | E11: Outside of Canada | F11: Total | G11: % of Total Project Funding | H11: % of Total Eligible Expenses | L11: Jobs Created (FTE) | M11: Location(s), if outside Alberta
B12: Private Funding | C12: =SUMIF('Project Funding '!C7:C21,"Private",'Project Funding '!N7:N21) -> 5000000 | D12: =SUMIF('Project Funding '!C7:C21,"Private",'Project Funding '!O7:O21) -> 4000000 | E12: =SUMIF('Project Funding '!C7:C21,"Private",'Project Funding '!P7:P21) -> 0 | F12: =SUM(C12:E12) -> 9000000 | G12: =F12/$C$7 -> 0.667903525 | H12: =F12/$F$6 -> 0.8695652174 | K12: In Alberta | L12: =Labour!B7 -> 0
B13: Other Government | C13: =SUMIF('Project Funding '!C8:C21,"Government",'Project Funding '!N8:N21) -> 0 | D13: =SUMIF('Project Funding '!C8:C21,"Government",'Project Funding '!O8:O21) -> 2475000 | E13: =SUMIF('Project Funding '!C8:C21,"Government",'Project Funding '!P8:P21) -> 0 | F13: =SUM(C13:E13) -> 2475000 | G13: =F13/$C$7 -> 0.1836734694 | H13: =F13/$F$6 -> 0.2391304348 | K13: In Canada, but outside Alberta | L13: =Labour!B8 -> 0 | M13: =Labour!C8 -> 0
B14: ERA | C14: =Instructions!C3 -> 2000000 | F14: =SUM(C14:E14) -> 2000000 | G14: 0.1484230056 | H14: 0.193236715 | K14: Outside Canada | L14: =Labour!B9 -> 0 | M14: =Labour!C9 -> 0
B15: Totals | C15: =SUM(C12:C14) -> 7000000 | D15: =SUM(D12:D14) -> 6475000 | E15: =SUM(E12:E14) -> 0 | F15: =SUM(F12:F14) -> 13475000 | K15: Totals | L15: =SUM(L12:L14) -> 0
B16: % of Total Project Funding | C16: =C15/$F$15 -> 0.5194805195 | D16: =D15/$F$15 -> 0.4805194805 | E16: =E15/$F$15 -> 0
B18: Sumary of Expenses Eligibility by Category | K18: Summary of Eligble Expenses by Milestone
B19: Expense category | C19: Eligible | D19: Ineligible | E19: Totals | F19: Category Eligible Expense as a % of total Eligible Expenses | G19: Expense Category as a % of Total Project Budget | K19: Expense category | L19: M1 | M19: M2 | N19: M3 | O19: M4 | P19: M5 | Q19: M6 | R19: M7 | S19: M8 | T19: M9 | U19: M10 | V19: M11 | W19: M12 | X19: M13 | Y19: M14 | Z19: M15 | AA19: TOTAL
B20: Labour | C20: =Labour!K31 -> 2240000 | D20: =Labour!L31 -> 1460000 | E20: =D20+C20 -> 3700000 | F20: =C20/$F$6 -> 0.2164251208 | G20: =E20/$C$6 -> 0.2725598527 | K20: Labour | L20: =Labour!A36 -> 40000 | M20: =Labour!B36 -> 40000 | N20: =Labour!C36 -> 240000 | O20: =Labour!D36 -> 40000 | P20: =Labour!E36 -> 680000 | Q20: =Labour!F36 -> 40000 | R20: =Labour!G36 -> 40000 | S20: =Labour!H36 -> 40000 | T20: =Labour!I36 -> 40000 | U20: =Labour!J36 -> 40000 | V20: =Labour!K36 -> 240000 | W20: =Labour!L36 -> 440000 | X20: =Labour!M36 -> 240000 | Y20: =Labour!N36 -> 40000 | Z20: =Labour!O36 -> 40000 | AA20: =SUM(L20:Z20) -> 2240000
B21: Equipment | C21: =Equip!H21 -> 40000 | D21: =Equip!I21 -> 25000 | E21: 65000 | F21: 0.0038647343 | G21: 0.004788213628 | K21: Equipment | L21: =Equip!A28 -> 0 | M21: =Equip!B28 -> 5000 | N21: =Equip!C28 -> 5000 | O21: =Equip!D28 -> 5000 | P21: =Equip!E28 -> 0 | Q21: =Equip!F28 -> 0 | R21: =Equip!G28 -> 5000 | S21: =Equip!H28 -> 0 | T21: =Equip!I28 -> 0 | U21: =Equip!J28 -> 5000 | V21: =Equip!K28 -> 0 | W21: =Equip!L28 -> 5000 | X21: =Equip!M28 -> 10000 | Y21: =Equip!N28 -> 0 | Z21: =Equip!O28 -> 0 | AA21: 40000
B22: Materials & Supplies | C22: ='Materials-Supplies'!H22 -> 600000 | D22: ='Materials-Supplies'!I22 -> 300000 | E22: =D22+C22 -> 900000 | F22: 0.05797101449 | G22: 0.06629834254 | K22: Materials & Supplies | L22: ='Materials-Supplies'!A28 -> 60000 | M22: ='Materials-Supplies'!B28 -> 60000 | N22: ='Materials-Supplies'!C28 -> 0 | O22: ='Materials-Supplies'!D28 -> 60000 | P22: ='Materials-Supplies'!E28 -> 0 | Q22: ='Materials-Supplies'!F28 -> 0 | R22: ='Materials-Supplies'!G28 -> 0 | S22: ='Materials-Supplies'!H28 -> 60000 | T22: ='Materials-Supplies'!I28 -> 60000 | U22: ='Materials-Supplies'!J28 -> 0 | V22: ='Materials-Supplies'!K28 -> 60000 | W22: ='Materials-Supplies'!L28 -> 60000 | X22: ='Materials-Supplies'!M28 -> 60000 | Y22: ='Materials-Supplies'!N28 -> 60000 | Z22: ='Materials-Supplies'!O28 -> 60000 | AA22: 600000
B23: Consulting/subcontracting | C23: ='Consult-SubC'!I22 -> 70000 | D23: ='Consult-SubC'!J22 -> 80000 | E23: 150000 | F23: 0.006763285024 | G23: 0.01104972376 | K23: Consulting/subcontracting | L23: ='Consult-SubC'!A29 -> 2666.666667 | M23: ='Consult-SubC'!B29 -> 12666.66667 | N23: ='Consult-SubC'!C29 -> 2666.666667 | O23: ='Consult-SubC'!D29 -> 2666.666667 | P23: ='Consult-SubC'!E29 -> 2666.666667 | Q23: ='Consult-SubC'!F29 -> 2666.666667 | R23: ='Consult-SubC'!G29 -> 2666.666667 | S23: ='Consult-SubC'!H29 -> 2666.666667 | T23: ='Consult-SubC'!I29 -> 2666.666667 | U23: ='Consult-SubC'!J29 -> 2666.666667 | V23: ='Consult-SubC'!K29 -> 2666.666667 | W23: ='Consult-SubC'!L29 -> 12666.66667 | X23: ='Consult-SubC'!M29 -> 2666.666667 | Y23: ='Consult-SubC'!N29 -> 2666.666667 | Z23: ='Consult-SubC'!O29 -> 12666.66667 | AA23: =SUM(L23:Z23) -> 70000
B24: Travel | C24: =Travel!H21 -> 900000 | D24: =Travel!I21 -> 360000 | E24: 1260000 | F24: 0.08695652174 | G24: 0.09281767956 | K24: Travel | L24: =Travel!A28 -> 0 | M24: =Travel!B28 -> 0 | N24: =Travel!C28 -> 90000 | O24: =Travel!D28 -> 0 | P24: =Travel!E28 -> 90000 | Q24: =Travel!F28 -> 90000 | R24: =Travel!G28 -> 0 | S24: =Travel!H28 -> 90000 | T24: =Travel!I28 -> 90000 | U24: =Travel!J28 -> 90000 | V24: =Travel!K28 -> 90000 | W24: =Travel!L28 -> 0 | X24: =Travel!M28 -> 90000 | Y24: =Travel!N28 -> 90000 | Z24: =Travel!O28 -> 90000 | AA24: 900000
B25: Overhead | C25: =Overhead!G22 -> 6500000 | D25: =Overhead!H22 -> 1000000 | E25: 7500000 | F25: 0.6280193237 | G25: 0.5524861878 | K25: Overhead | L25: =Overhead!A28 -> 366666.6667 | M25: =Overhead!B28 -> 366666.6667 | N25: =Overhead!C28 -> 366666.6667 | O25: =Overhead!D28 -> 866666.6667 | P25: =Overhead!E28 -> 366666.6667 | Q25: =Overhead!F28 -> 366666.6667 | R25: =Overhead!G28 -> 866666.6667 | S25: =Overhead!H28 -> 366666.6667 | T25: =Overhead!I28 -> 366666.6667 | U25: =Overhead!J28 -> 366666.6667 | V25: =Overhead!K28 -> 366666.6667 | W25: =Overhead!L28 -> 366666.6667 | X25: =Overhead!M28 -> 366666.6667 | Y25: =Overhead!N28 -> 366666.6667 | Z25: =Overhead!O28 -> 366666.6667 | AA25: 6500000
B26: Totals | C26: =SUM(C20:C25) -> 10350000 | D26: =SUM(D20:D25) -> 3225000 | E26: =SUM(E20:E25) -> 13575000 | K26: Totals | L26: =SUM(L20:L25) -> 469333.3333 | M26: 484333.3333 | N26: 704333.3333 | O26: 974333.3333 | P26: 1139333.333 | Q26: 499333.3333 | R26: 914333.3333 | S26: 559333.3333 | T26: 559333.3333 | U26: 504333.3333 | V26: 759333.3333 | W26: 884333.3333 | X26: 769333.3333 | Y26: 559333.3333 | Z26: 569333.3333 | AA26: 10350000
B28: Summary of Eligible Expenses by Geographical Area and Expense Category | K28: Summary of InEligble Expenses by Milestone
B29: Expense Category | C29: In Alberta | D29: In Canada, but outside Alberta | E29: Outside of Canada | F29: Total Eligible Expenses By Category | K29: Expense category | L29: M1 | M29: M2 | N29: M3 | O29: M4 | P29: M5 | Q29: M6 | R29: M7 | S29: M8 | T29: M9 | U29: M10 | V29: M11 | W29: M12 | X29: M13 | Y29: M14 | Z29: M15 | AA29: TOTAL
B30: Labour | C30: =Labour!O31 -> 900000 | D30: =Labour!P31 -> 1000000 | E30: =Labour!Q31 -> 200000 | F30: =SUM(C30:E30) -> 2100000 | K30: Labour | L30: =Labour!A42 -> 13333.33333 | M30: =Labour!B42 -> 13333.33333 | N30: =Labour!C42 -> 413333.3333 | O30: =Labour!D42 -> 213333.3333 | P30: =Labour!E42 -> 273333.3333 | Q30: =Labour!F42 -> 13333.33333 | R30: =Labour!G42 -> 13333.33333 | S30: =Labour!H42 -> 13333.33333 | T30: =Labour!I42 -> 13333.33333 | U30: =Labour!J42 -> 13333.33333 | V30: =Labour!K42 -> 213333.3333 | W30: =Labour!L42 -> 13333.33333 | X30: =Labour!M42 -> 213333.3333 | Y30: =Labour!N42 -> 13333.33333 | Z30: =Labour!O42 -> 13333.33333 | AA30: =SUM(L30:Z30) -> 1460000
B31: Equipment | C31: =Equip!L21 -> 5000 | D31: =Equip!M21 -> 0 | E31: =Equip!N21 -> 0 | F31: =SUM(C31:E31) -> 5000 | K31: Equipment | L31: =Equip!A34 -> 0 | M31: =Equip!B34 -> 0 | N31: =Equip!C34 -> 0 | O31: =Equip!D34 -> 0 | P31: =Equip!E34 -> 0 | Q31: =Equip!F34 -> 0 | R31: =Equip!G34 -> 0 | S31: =Equip!H34 -> 5000 | T31: =Equip!I34 -> 5000 | U31: =Equip!J34 -> 0 | V31: =Equip!K34 -> 5000 | W31: =Equip!L34 -> 0 | X31: =Equip!M34 -> 0 | Y31: =Equip!N34 -> 5000 | Z31: =Equip!O34 -> 5000 | AA31: 25000
B32: Materials & Supplies | C32: ='Materials-Supplies'!L22 -> 0 | D32: ='Materials-Supplies'!M22 -> 0 | E32: ='Materials-Supplies'!N22 -> 0 | F32: =SUM(C32:E32) -> 0 | K32: Materials & Supplies | L32: ='Materials-Supplies'!A34 -> 4000 | M32: ='Materials-Supplies'!B34 -> 4000 | N32: ='Materials-Supplies'!C34 -> 64000 | O32: ='Materials-Supplies'!D34 -> 4000 | P32: ='Materials-Supplies'!E34 -> 64000 | Q32: ='Materials-Supplies'!F34 -> 64000 | R32: ='Materials-Supplies'!G34 -> 64000 | S32: ='Materials-Supplies'!H34 -> 4000 | T32: ='Materials-Supplies'!I34 -> 4000 | U32: ='Materials-Supplies'!J34 -> 4000 | V32: ='Materials-Supplies'!K34 -> 4000 | W32: ='Materials-Supplies'!L34 -> 4000 | X32: ='Materials-Supplies'!M34 -> 4000 | Y32: ='Materials-Supplies'!N34 -> 4000 | Z32: ='Materials-Supplies'!O34 -> 4000 | AA32: 300000
B33: Consulting/subcontracting | C33: ='Consult-SubC'!M22 -> 0 | D33: ='Consult-SubC'!N22 -> 0 | E33: ='Consult-SubC'!O22 -> 0 | F33: =SUM(C33:E33) -> 0 | K33: Consulting/subcontracting | L33: ='Consult-SubC'!A35 -> 11333.33333 | M33: ='Consult-SubC'!B35 -> 1333.333333 | N33: ='Consult-SubC'!C35 -> 11333.33333 | O33: ='Consult-SubC'!D35 -> 11333.33333 | P33: ='Consult-SubC'!E35 -> 11333.33333 | Q33: ='Consult-SubC'!F35 -> 11333.33333 | R33: ='Consult-SubC'!G35 -> 11333.33333 | S33: ='Consult-SubC'!H35 -> 1333.333333 | T33: ='Consult-SubC'!I35 -> 1333.333333 | U33: ='Consult-SubC'!J35 -> 1333.333333 | V33: ='Consult-SubC'!K35 -> 1333.333333 | W33: ='Consult-SubC'!L35 -> 1333.333333 | X33: ='Consult-SubC'!M35 -> 1333.333333 | Y33: ='Consult-SubC'!N35 -> 1333.333333 | Z33: ='Consult-SubC'!O35 -> 1333.333333 | AA33: 80000
B34: Travel | C34: =Travel!M21 -> 0 | D34: =Travel!N21 -> 0 | E34: =Travel!O21 -> 0 | F34: =SUM(C34:E34) -> 0 | K34: Travel | L34: =Travel!A34 -> 6000 | M34: =Travel!B34 -> 96000 | N34: =Travel!C34 -> 6000 | O34: =Travel!D34 -> 6000 | P34: =Travel!E34 -> 6000 | Q34: =Travel!F34 -> 6000 | R34: =Travel!G34 -> 96000 | S34: =Travel!H34 -> 6000 | T34: =Travel!I34 -> 6000 | U34: =Travel!J34 -> 6000 | V34: =Travel!K34 -> 6000 | W34: =Travel!L34 -> 96000 | X34: =Travel!M34 -> 6000 | Y34: =Travel!N34 -> 6000 | Z34: =Travel!O34 -> 6000 | AA34: 360000
B35: Overhead | C35: =Overhead!K22 -> 0 | D35: =Overhead!L22 -> 0 | E35: =Overhead!M22 -> 0 | F35: =SUM(C35:E35) -> 0 | K35: Overhead | L35: =Overhead!A34 -> 66666.66667 | M35: =Overhead!B34 -> 66666.66667 | N35: =Overhead!C34 -> 66666.66667 | O35: =Overhead!D34 -> 66666.66667 | P35: =Overhead!E34 -> 66666.66667 | Q35: =Overhead!F34 -> 66666.66667 | R35: =Overhead!G34 -> 66666.66667 | S35: =Overhead!H34 -> 66666.66667 | T35: =Overhead!I34 -> 66666.66667 | U35: =Overhead!J34 -> 66666.66667 | V35: =Overhead!K34 -> 66666.66667 | W35: =Overhead!L34 -> 66666.66667 | X35: =Overhead!M34 -> 66666.66667 | Y35: =Overhead!N34 -> 66666.66667 | Z35: =Overhead!O34 -> 66666.66667 | AA35: 1000000
B36: Total Eligible Expenses by Geographic Area | C36: =SUM(C30:C35) -> 905000 | D36: =SUM(D30:D35) -> 1000000 | E36: =SUM(E30:E35) -> 200000 | F36: =SUM(F30:F35) -> 2105000 | K36: Totals | L36: =SUM(L30:L35) -> 101333.3333 | M36: =SUM(M30:M35) -> 181333.3333 | N36: =SUM(N30:N35) -> 561333.3333 | O36: 301333.3333 | P36: 421333.3333 | Q36: 161333.3333 | R36: 251333.3333 | S36: 96333.33333 | T36: 96333.33333 | U36: 91333.33333 | V36: 296333.3333 | W36: 181333.3333 | X36: 291333.3333 | Y36: 96333.33333 | Z36: 96333.33333 | AA36: 3225000
B38: ERIMS INPUT (Eligible + Ineligible expenses) | D38: FOR ERA ADMIN PURPOSES ONLY - PLEASE DO NOT EDIT
B39: =D2 -> 555555
B40: =D3 -> Winterfell
D41: Labour | E41: Equipment | F41: Materials | G41: Sub-Con | H41: Travel | I41: Admin | J41: TOTAL | K41: CHECK
B42: M1 | C42: Proponent | D42: =($L20*(1-'Milestone Summary'!H10))+L30 -> 45662.85038 | E42: =(L21*(1-'Milestone Summary'!H10))+L31 -> 0 | F42: =(L22*(1-'Milestone Summary'!H10))+SUMMARY!L32 -> 52494.27557 | G42: =(L23*(1-'Milestone Summary'!H10)+SUMMARY!L33) -> 13488.63447 | H42: =(L24*(1-'Milestone Summary'!H10)+SUMMARY!L34) -> 6000 | I42: =L25*(1-'Milestone Summary'!H10)+SUMMARY!L35 -> 363020.5729 | J42: =SUM(D42:I42) -> 480666.3333 | K42: =(J42+J43)-(L36+L26) -> 0
C43: ERA | D43: =L20*'Milestone Summary'!H10 -> 7670.482955 | E43: =L21*'Milestone Summary'!H10 -> 0 | F43: =L22*'Milestone Summary'!H10 -> 11505.72443 | G43: =L23*'Milestone Summary'!H10 -> 511.3655303 | H43: =L24*'Milestone Summary'!H10 -> 0 | I43: =L25*'Milestone Summary'!H10 -> 70312.76042 | J43: =SUM(D43:I43) -> 90000.33333
B45: M2 | C45: Proponent | D45: =(M20*(1-'Milestone Summary'!H11)+SUMMARY!M30) -> 45570.47029 | E45: =(M21*(1-'Milestone Summary'!H11)+SUMMARY!M31) -> 4029.64212 | F45: =(M22*(1-'Milestone Summary'!H11)+SUMMARY!M32) -> 52355.70544 | G45: =(M23*(1-'Milestone Summary'!H11)+SUMMARY!M33) -> 11541.76004 | H45: =(M24*(1-'Milestone Summary'!H11)+SUMMARY!M34) -> 96000 | I45: =(M25*(1-'Milestone Summary'!H11)+SUMMARY!M35) -> 362173.7554 | J45: =SUM(D45:I45) -> 571671.3333 | K45: =(J45+J46)-(M26+M36) -> 0
C46: ERA | D46: =M20*'Milestone Summary'!H11 -> 7762.863042 | E46: =M21*'Milestone Summary'!H11 -> 970.3578802 | F46: =M22*'Milestone Summary'!H11 -> 11644.29456 | G46: =M23*'Milestone Summary'!H11 -> 2458.239963 | H46: =M24*'Milestone Summary'!H11 -> 0 | I46: =M25*'Milestone Summary'!H11 -> 71159.57788 | J46: =SUM(D46:I46) -> 93995.33333
B48: M3 | C48: Proponent | D48: =(N20*(1-'Milestone Summary'!H12)+SUMMARY!N30) -> 607673.021 | E48: =(N21*(1-'Milestone Summary'!H12)+SUMMARY!N31) -> 4048.743493 | F48: =(N22*(1-'Milestone Summary'!H12)+SUMMARY!N32) -> 64000 | G48: =(N23*(1-'Milestone Summary'!H12)+SUMMARY!N33) -> 13492.6632 | H48: =(N24*(1-'Milestone Summary'!H12)+SUMMARY!N34) -> 78877.38287 | I48: =(N25*(1-'Milestone Summary'!H12)+SUMMARY!N35) -> 363574.5228 | J48: =SUM(D48:I48) -> 1131666.333 | K48: =(J48+J49)-(N26+N36) -> 0
C49: ERA | D49: =N20*'Milestone Summary'!H12 -> 45660.31235 | E49: =N21*'Milestone Summary'!H12 -> 951.2565073 | F49: =N22*'Milestone Summary'!H12 -> 0 | G49: =N23*'Milestone Summary'!H12 -> 507.3368039 | H49: =N24*'Milestone Summary'!H12 -> 17122.61713 | I49: =N25*'Milestone Summary'!H12 -> 69758.81054 | J49: =SUM(D49:I49) -> 134000.3333
B51: M4 | C51: Proponent | D51: =(O20*(1-'Milestone Summary'!H13)+SUMMARY!O30) -> 245574.1681 | E51: =(O21*(1-'Milestone Summary'!H13)+SUMMARY!O31) -> 4030.104345 | F51: =(O22*(1-'Milestone Summary'!H13)+SUMMARY!O32) -> 52361.25214 | G51: =(O23*(1-'Milestone Summary'!H13)+SUMMARY!O33) -> 13482.72232 | H51: =(O24*(1-'Milestone Summary'!H13)+SUMMARY!O34) -> 6000 | I51: =(O25*(1-'Milestone Summary'!H13)+SUMMARY!O35) -> 765218.0864 | J51: =SUM(D51:I51) -> 1086666.333 | K51: =(J51+J52)-(O26+O36) -> 0
C52: ERA | D52: =O20*'Milestone Summary'!H13 -> 7759.165241 | E52: =O21*'Milestone Summary'!H13 -> 969.8956551 | F52: =O22*'Milestone Summary'!H13 -> 11638.74786 | G52: =O23*'Milestone Summary'!H13 -> 517.2776827 | H52: =O24*'Milestone Summary'!H13 -> 0 | I52: =O25*'Milestone Summary'!H13 -> 168115.2469 | J52: =SUM(D52:I52) -> 189000.3333
B54: M5 | C54: Proponent | D54: =(P20*(1-'Milestone Summary'!H14)+SUMMARY!P30) -> 821431.4375 | E54: =(P21*(1-'Milestone Summary'!H14)+SUMMARY!P31) -> 0 | F54: =(P22*(1-'Milestone Summary'!H14)+(SUMMARY!P32)) -> 64000 | G54: =(P23*(1-'Milestone Summary'!H14)+SUMMARY!P33) -> 13482.73766 | H54: =(P24*(1-'Milestone Summary'!H14)+SUMMARY!P34) -> 78542.39614 | I54: =(P25*(1-'Milestone Summary'!H14)+SUMMARY!P35) -> 362209.762 | J54: =SUM(D54:I54) -> 1339666.333 | K54: =(J54+J55)-(P26+P36) -> 0
C55: ERA | D55: =P20*'Milestone Summary'!H14 -> 131901.8958 | E55: =P21*'Milestone Summary'!H14 -> 0 | F55: =P22*'Milestone Summary'!H14 -> 0 | G55: =P23*'Milestone Summary'!H14 -> 517.2623366 | H55: =P24*'Milestone Summary'!H14 -> 17457.60386 | I55: =P25*'Milestone Summary'!H14 -> 71123.57129 | J55: =SUM(D55:I55) -> 221000.3333
B57: M6 | C57: Proponent | D57: =(Q20*(1-'Milestone Summary'!H15)+SUMMARY!Q30) -> 45643.05296 | E57: =(Q21*(1-'Milestone Summary'!H15)+SUMMARY!Q31) -> 0 | F57: =(Q22*(1-'Milestone Summary'!H15)+SUMMARY!Q32) -> 64000 | G57: =(Q23*(1-'Milestone Summary'!H15)+SUMMARY!Q33) -> 13487.31464 | H57: =(Q24*(1-'Milestone Summary'!H15)+SUMMARY!Q34) -> 78696.86916 | I57: =(Q25*(1-'Milestone Summary'!H15)+SUMMARY!Q35) -> 362839.0966 | J57: =SUM(D57:I57) -> 564666.3333 | K57: =(J57+J58)-(Q26+Q36) -> 0
C58: ERA | D58: =Q20*'Milestone Summary'!H15 -> 7690.280374 | E58: =Q21*'Milestone Summary'!H15 -> 0 | F58: =Q22*'Milestone Summary'!H15 -> 0 | G58: =Q23*'Milestone Summary'!H15 -> 512.6853583 | H58: =Q24*'Milestone Summary'!H15 -> 17303.13084 | I58: =Q25*'Milestone Summary'!H15 -> 70494.23676 | J58: =SUM(D58:I58) -> 96000.33333
B60: M7 | C60: Proponent | D60: =(R20*(1-'Milestone Summary'!H16)+SUMMARY!R30) -> 45589.97205 | E60: =(R21*(1-'Milestone Summary'!H16)+SUMMARY!R31) -> 4032.07984 | F60: =(R22*(1-'Milestone Summary'!H16)+SUMMARY!R32) -> 64000 | G60: =(R23*(1-'Milestone Summary'!H16)+SUMMARY!R33) -> 13483.77591 | H60: =(R24*(1-'Milestone Summary'!H16)+SUMMARY!R34) -> 96000 | I60: =(R25*(1-'Milestone Summary'!H16)+SUMMARY!R35) -> 765560.5055 | J60: =SUM(D60:I60) -> 988666.3333 | K60: =(J60+J61)-(R26+R36) -> 0
C61: ERA | D61: =R20*'Milestone Summary'!H16 -> 7743.361283 | E61: =R21*'Milestone Summary'!H16 -> 967.9201604 | F61: =R22*'Milestone Summary'!H16 -> 0 | G61: =R23*'Milestone Summary'!H16 -> 516.2240856 | H61: =R24*'Milestone Summary'!H16 -> 0 | I61: =R25*'Milestone Summary'!H16 -> 167772.8278 | J61: =SUM(D61:I61) -> 177000.3333
B63: M8 | C63: Proponent | D63: =(S20*(1-'Milestone Summary'!H17)+SUMMARY!S30) -> 45609.82916 | E63: =(S21*(1-'Milestone Summary'!H17)+SUMMARY!S31) -> 5000 | F63: =(S22*(1-'Milestone Summary'!H17)+SUMMARY!S32) -> 52414.74374 | G63: =(S23*(1-'Milestone Summary'!H17)+SUMMARY!S33) -> 3485.099722 | H63: =(S24*(1-'Milestone Summary'!H17)+SUMMARY!S34) -> 78622.11561 | I63: =(S25*(1-'Milestone Summary'!H17)+SUMMARY!S35) -> 362534.5451 | J63: =SUM(D63:I63) -> 547666.3333 | K63: =(J63+J64)-(S26+S36) -> 0
C64: ERA | D64: =S20*'Milestone Summary'!H17 -> 7723.504172 | E64: =S21*'Milestone Summary'!H17 -> 0 | F64: =S22*'Milestone Summary'!H17 -> 11585.25626 | G64: =S23*'Milestone Summary'!H17 -> 514.9002781 | H64: =S24*'Milestone Summary'!H17 -> 17377.88439 | I64: =S25*'Milestone Summary'!H17 -> 70798.78824 | J64: =SUM(D64:I64) -> 108000.3333
B66: M9 | C66: Proponent | D66: =(T20*(1-'Milestone Summary'!H18)+SUMMARY!T30) -> 45609.82916 | E66: =(T21*(1-'Milestone Summary'!H18)+SUMMARY!T31) -> 5000 | F66: =(T22*(1-'Milestone Summary'!H18)+SUMMARY!T32) -> 52414.74374 | G66: =(T23*(1-'Milestone Summary'!H18)+SUMMARY!T33) -> 3485.099722 | H66: =(T24*(1-'Milestone Summary'!H18)+SUMMARY!T34) -> 78622.11561 | I66: =(T25*(1-'Milestone Summary'!H18)+SUMMARY!T35) -> 362534.5451 | J66: =SUM(D66:I66) -> 547666.3333 | K66: =(J66+J67)-(T26+T36) -> 0
C67: ERA | D67: =T20*'Milestone Summary'!H18 -> 7723.504172 | E67: =T21*'Milestone Summary'!H18 -> 0 | F67: =T22*'Milestone Summary'!H18 -> 11585.25626 | G67: =T23*'Milestone Summary'!H18 -> 514.9002781 | H67: =T24*'Milestone Summary'!H18 -> 17377.88439 | I67: =T25*'Milestone Summary'!H18 -> 70798.78824 | J67: =SUM(D67:I67) -> 108000.3333
B69: M10 | C69: Proponent | D69: =(U20*(1-'Milestone Summary'!H19)+SUMMARY!U30) -> 45639.98237 | E69: =(U21*(1-'Milestone Summary'!H19)+SUMMARY!U31) -> 4038.33113 | F69: =(U22*(1-'Milestone Summary'!H19)+SUMMARY!U32) -> 4000 | G69: =(U23*(1-'Milestone Summary'!H19)+SUMMARY!U33) -> 3487.109936 | H69: =(U24*(1-'Milestone Summary'!H19)+SUMMARY!U34) -> 78689.96034 | I69: =(U25*(1-'Milestone Summary'!H19)+SUMMARY!U35) -> 362810.9495 | J69: =SUM(D69:I69) -> 498666.3333 | K69: =(J69+J70)-(U26+U36) -> 0
C70: ERA | D70: =U20*'Milestone Summary'!H19 -> 7693.350958 | E70: =U21*'Milestone Summary'!H19 -> 961.6688698 | F70: =U22*'Milestone Summary'!H19 -> 0 | G70: =U23*'Milestone Summary'!H19 -> 512.8900639 | H70: =(U24*'Milestone Summary'!H19) -> 17310.03966 | I70: =U25*'Milestone Summary'!H19 -> 70522.38378 | J70: =SUM(D70:I70) -> 97000.33333
B72: M11 | C72: Proponent | D72: =(V20*(1-'Milestone Summary'!H20)+SUMMARY!V30) -> 406871.4194 | E72: =(V21*(1-'Milestone Summary'!H20)+SUMMARY!V31) -> 5000 | F72: =(V22*(1-'Milestone Summary'!H20)+SUMMARY!V32) -> 52384.52151 | G72: =(V23*(1-'Milestone Summary'!H20)+SUMMARY!V33) -> 3483.756512 | H72: =(V24*(1-'Milestone Summary'!H20)+SUMMARY!V34) -> 78576.78227 | I72: =(V25*(1-'Milestone Summary'!H20)+SUMMARY!V35) -> 362349.8537 | J72: =SUM(D72:I72) -> 908666.3333 | K72: =(J72+J73)-(V26+V36) -> 0
C73: ERA | D73: =V20*'Milestone Summary'!H20 -> 46461.91396 | E73: =V21*'Milestone Summary'!H20 -> 0 | F73: =V22*'Milestone Summary'!H20 -> 11615.47849 | G73: =V23*'Milestone Summary'!H20 -> 516.2434884 | H73: =V24*'Milestone Summary'!H20 -> 17423.21773 | I73: =V25*'Milestone Summary'!H20 -> 70983.47966 | J73: =SUM(D73:I73) -> 147000.3333
B75: M12 | C75: Proponent | D75: =(W20*(1-'Milestone Summary'!H21)+SUMMARY!W30) -> 367754.5772 | E75: =(W21*(1-'Milestone Summary'!H21)+SUMMARY!W31) -> 4027.514135 | F75: =(W22*(1-'Milestone Summary'!H21)+SUMMARY!W32) -> 52330.16962 | G75: =(W23*(1-'Milestone Summary'!H21)+SUMMARY!W33) -> 11536.36914 | H75: =(W24*(1-'Milestone Summary'!H21)+SUMMARY!W34) -> 96000 | I75: =(W25*(1-'Milestone Summary'!H21)+SUMMARY!W35) -> 362017.7032 | J75: =SUM(D75:I75) -> 893666.3333 | K75: =(J75+J76)-(W26+W36) -> 0
C76: ERA | D76: =W20*'Milestone Summary'!H21 -> 85578.75613 | E76: =W21*'Milestone Summary'!H21 -> 972.4858651 | F76: =W22*'Milestone Summary'!H21 -> 11669.83038 | G76: =W23*'Milestone Summary'!H21 -> 2463.630858 | H76: =W24*'Milestone Summary'!H21 -> 0 | I76: =W25*'Milestone Summary'!H21 -> 71315.6301 | J76: =SUM(D76:I76) -> 172000.3333
B78: M13 | C78: Proponent | D78: =(X20*(1-'Milestone Summary'!H22)+SUMMARY!X30) -> 406851.4269 | E78: =(X21*(1-'Milestone Summary'!H22)+SUMMARY!X31) -> 8063.253899 | F78: =(X22*(1-'Milestone Summary'!H22)+SUMMARY!X32) -> 52379.5234 | G78: =(X23*(1-'Milestone Summary'!H22)+SUMMARY!X33) -> 3483.534373 | H78: =(X24*(1-'Milestone Summary'!H22)+SUMMARY!X34) -> 78569.2851 | I78: =(X25*(1-'Milestone Summary'!H22)+SUMMARY!X35) -> 362319.3096 | J78: =SUM(D78:I78) -> 911666.3333 | K78: =(J78+J79)-(X26+X36) -> 0
C79: ERA | D79: =X20*'Milestone Summary'!H22 -> 46481.90641 | E79: =X21*'Milestone Summary'!H22 -> 1936.746101 | F79: =X22*'Milestone Summary'!H22 -> 11620.4766 | G79: =X23*'Milestone Summary'!H22 -> 516.4656268 | H79: =X24*'Milestone Summary'!H22 -> 17430.7149 | I79: =X25*'Milestone Summary'!H22 -> 71014.02369 | J79: =SUM(D79:I79) -> 149000.3333
B81: M14 | C81: Proponent | D81: =(Y20*(1-'Milestone Summary'!H23)+SUMMARY!Y30) -> 45609.82916 | E81: =(Y21*(1-'Milestone Summary'!H23)+SUMMARY!Y31) -> 5000 | F81: =(Y22*(1-'Milestone Summary'!H23)+SUMMARY!Y32) -> 52414.74374 | G81: =(Y23*(1-'Milestone Summary'!H23)+SUMMARY!Y33) -> 3485.099722 | H81: =(Y24*(1-'Milestone Summary'!H23)+SUMMARY!Y34) -> 78622.11561 | I81: =(Y25*(1-'Milestone Summary'!H23)+SUMMARY!Y35) -> 362534.5451 | J81: =SUM(D81:I81) -> 547666.3333 | K81: =(J81+J82)-(Y26+Y36) -> 0
C82: ERA | D82: =Y20*'Milestone Summary'!H23 -> 7723.504172 | E82: =Y21*'Milestone Summary'!H23 -> 0 | F82: =Y22*'Milestone Summary'!H23 -> 11585.25626 | G82: =Y23*'Milestone Summary'!H23 -> 514.9002781 | H82: =Y24*'Milestone Summary'!H23 -> 17377.88439 | I82: =Y25*'Milestone Summary'!H23 -> 70798.78824 | J82: =SUM(D82:I82) -> 108000.3333
B84: M15 | C84: Proponent | D84: =(Z20*(1-'Milestone Summary'!H24)+SUMMARY!Z30) -> 45604.97268 | E84: =(Z21*(1-'Milestone Summary'!H24)+SUMMARY!Z31) -> 5000 | F84: =(Z22*(1-'Milestone Summary'!H24)+SUMMARY!Z32) -> 52407.45902 | G84: =(Z23*(1-'Milestone Summary'!H24)+SUMMARY!Z33) -> 11552.68579 | H84: =(Z24*(1-'Milestone Summary'!H24)+SUMMARY!Z34) -> 78611.18852 | I84: =(Z25*(1-'Milestone Summary'!H24)+SUMMARY!Z35) -> 362490.0273 | J84: =SUM(D84:I84) -> 555666.3333 | K84: =(J84+J85)-(Z26+Z36) -> 0
C85: ERA | D85: =Z20*'Milestone Summary'!H24 -> 7728.360656 | E85: =Z21*'Milestone Summary'!H24 -> 0 | F85: =Z22*'Milestone Summary'!H24 -> 11592.54098 | G85: =Z23*'Milestone Summary'!H24 -> 2447.314208 | H85: =Z24*'Milestone Summary'!H24 -> 17388.81148 | I85: =Z25*'Milestone Summary'!H24 -> 70843.30601 | J85: =SUM(D85:I85) -> 110000.3333
